Body Name,Body,Service Division Label,Service Division Code,Organisational Unit,Expenditure Category,Expenditure Code,CIPFA detailed expediture type,CIPFA detailed expediture code,Narrative,Date,Transaction number,Net Amount,Capital and Revenue,Supplier Name,Supplier ID
Chorley Borough Council,http://statistics.data.gov.uk/id/local-authority/30UE,Unapportionable Central OHeads,1009,Policy & Governance,Mayoral Hospitality,40123,Expenses,5030,"Cutlery, crockery and glass hire for the Mayor`s Civic Dinner on 21st June 2019.",27/06/2019,138947,414.05,Revenue,Abbey Catering Equipment Hire Ltd,54191
Chorley Borough Council,http://statistics.data.gov.uk/id/local-authority/30UE,Democratic Represent and  Mgnt,1007,Early Intervention,External Contractor - Trust or Charity,50008,Private Contractors,5042,Active Nation Management Fee 2019 2020,06/06/2019,137913,"35,541.74",Revenue,Active Nation UK Ltd,17144
Chorley Borough Council,http://statistics.data.gov.uk/id/local-authority/30UE,Central Support Services,1009,Customer & Digital,Telephones - Other,40085,Communication and Computing,5028,Adept telecoms - April 19,14/06/2019,138181,"1,418.81",Revenue,Adept Telecom PLC,77452
Chorley Borough Council,http://statistics.data.gov.uk/id/local-authority/30UE,Community Development,1097,Policy & Governance,Core Funding Grants,40133,Grants and Subscriptions,5031,Year 3 commission for the delivery of a support service for older people in Chorley,19/06/2019,138673,"5,000.00",Revenue,Age UK,21252
Chorley Borough Council,http://statistics.data.gov.uk/id/local-authority/30UE,Unapportionable Central OHeads,1009,Customer & Digital,Bank Charges,40151,Miscellaneous Expenses,5034,Misc,12/06/2019,138518,10.60,Revenue,Allpay Net Ltd,17242
Chorley Borough Council,http://statistics.data.gov.uk/id/local-authority/30UE,Unapportionable Central OHeads,1009,Customer & Digital,Bank Charges,40151,Miscellaneous Expenses,5034,Misc,12/06/2019,138518,4.20,Revenue,Allpay Net Ltd,17242
Chorley Borough Council,http://statistics.data.gov.uk/id/local-authority/30UE,Unapportionable Central OHeads,1009,Customer & Digital,Bank Charges,40151,Miscellaneous Expenses,5034,Misc,12/06/2019,138518,"1,023.21",Revenue,Allpay Net Ltd,17242
Chorley Borough Council,http://statistics.data.gov.uk/id/local-authority/30UE,Unapportionable Central OHeads,1009,Customer & Digital,Bank Charges,40151,Miscellaneous Expenses,5034,Misc,12/06/2019,138518,514.25,Revenue,Allpay Net Ltd,17242
Chorley Borough Council,http://statistics.data.gov.uk/id/local-authority/30UE,Unapportionable Central OHeads,1009,Customer & Digital,Bank Charges,40151,Miscellaneous Expenses,5034,Misc,12/06/2019,138518,48.82,Revenue,Allpay Net Ltd,17242
Chorley Borough Council,http://statistics.data.gov.uk/id/local-authority/30UE,Democratic Represent and  Mgnt,1007,Business Development & Growth,Rent/Hire Of Premises,20017,Premises Rents,5007,Rents july to sept,14/06/2019,138562,"10,625.00",Revenue,Alston Properties Ltd,77241
Chorley Borough Council,http://statistics.data.gov.uk/id/local-authority/30UE,Democratic Represent and  Mgnt,1007,Customer & Digital,Supplies-Grounds Maintenance,40025,"Equipment, Furniture & Materia",5023,20 X Self Watering Half Barrier Basket with brackets. 40 X liners for Self Watering 1000 Half Barrier Basket. ,28/06/2019,138875,"3,468.20",Revenue,Amberol,64554
Chorley Borough Council,http://statistics.data.gov.uk/id/local-authority/30UE,Unapportionable Central OHeads,1009,Chief Executive,Miscellaneous Expenses,40200,Miscellaneous Expenses,5034,Events Cancellation Insurance - Chorley 10K run - 12th May 2019,19/06/2019,137824,896.00,Revenue,Aon UK Limited Accounts Division,76559
Chorley Borough Council,http://statistics.data.gov.uk/id/local-authority/30UE,Unapportionable Central OHeads,1009,Chief Executive,Miscellaneous Expenses,40200,Miscellaneous Expenses,5034,Events Cancellation insurance policy - 08/06/2019 - 05/01/2020 Covering 10 events,19/06/2019,138484,"5,266.16",Revenue,Aon UK Limited Accounts Division,76559
Chorley Borough Council,http://statistics.data.gov.uk/id/local-authority/30UE,Planning Policy,1092,Business Development & Growth,Professional Fees,40063,Services,5027,Commission of a Gypsy and Traveller Accommodation Assessment for the evidence base for Central Lancashire Local Plan.,26/06/2019,138709,903.29,Revenue,Arc4,60831
Chorley Borough Council,http://statistics.data.gov.uk/id/local-authority/30UE,Service Management & Support,1009,Customer & Digital,Protective Clothing,40040,"Clothing, Uniforms and Laundry",5025,"6 x 3M Peltor Optime II, Ear Defender and Headband to SNR 31 @ 9.49",04/06/2019,138159,56.94,Revenue,Arco Limited,17458
Chorley Borough Council,http://statistics.data.gov.uk/id/local-authority/30UE,Service Management & Support,1009,Customer & Digital,Protective Clothing,40040,"Clothing, Uniforms and Laundry",5025,1 x Arco Premium Disposable Ear Plugs �box of 200 Product code 251000 @ 8.75,04/06/2019,138159,8.75,Revenue,Arco Limited,17458
Chorley Borough Council,http://statistics.data.gov.uk/id/local-authority/30UE,Service Management & Support,1009,Customer & Digital,Supplies-Grounds Maintenance,40025,"Equipment, Furniture & Materia",5023,"6 x Sterile Eyewash saline Pods, 4F9661 HypaClens box of 25 @ 3.71 each",04/06/2019,138159,22.26,Revenue,Arco Limited,17458
Chorley Borough Council,http://statistics.data.gov.uk/id/local-authority/30UE,Service Management & Support,1009,Customer & Digital,Supplies-Grounds Maintenance,40025,"Equipment, Furniture & Materia",5023,5 x Arco HSE Economy Workplace First Aid Kit 4F9696 @ 7.80 each,04/06/2019,138159,39.00,Revenue,Arco Limited,17458
Chorley Borough Council,http://statistics.data.gov.uk/id/local-authority/30UE,Service Management & Support,1009,Customer & Digital,Protective Clothing,40040,"Clothing, Uniforms and Laundry",5025,6 x Arco Essentials Cargo Trousers Waist 34 and regular leg @ 6.73 each,04/06/2019,138159,40.38,Revenue,Arco Limited,17458
Chorley Borough Council,http://statistics.data.gov.uk/id/local-authority/30UE,Service Management & Support,1009,Customer & Digital,Protective Clothing,40040,"Clothing, Uniforms and Laundry",5025,3 x 3M PELTOR G2031A Forestry Combination Unit 258000 @ 29.03 each SNR28,04/06/2019,138159,87.09,Revenue,Arco Limited,17458
Chorley Borough Council,http://statistics.data.gov.uk/id/local-authority/30UE,Central Support Services,1009,Policy & Governance,Car Leasing Payment,14100,Direct Employee Expenses,5001,"Quote: 7301558 NAME REDACTED Mercedes Benz A200 AMG line Premium Plus Auto 5 door 3 years 11,000 miles/PA ",04/06/2019,138340,"3,137.28",Revenue,Arnold Clark Finance Ltd,20685
Chorley Borough Council,http://statistics.data.gov.uk/id/local-authority/30UE,Central Support Services,1009,Policy & Governance,Car Leasing Payment,14100,Direct Employee Expenses,5001,vat,04/06/2019,138340,307.81,Revenue,Arnold Clark Finance Ltd,20685
Chorley Borough Council,http://statistics.data.gov.uk/id/local-authority/30UE,Control Accounts,Control,Policy & Governance,Manual Control Account,1,Balance Sheet,Balance,vat,04/06/2019,138340,-307.81,Revenue,Arnold Clark Finance Ltd,20685
Chorley Borough Council,http://statistics.data.gov.uk/id/local-authority/30UE,Central Support Services,1009,Policy & Governance,Car Leasing Payment,14100,Direct Employee Expenses,5001,Quote: 7412138 NAME REDACTED Seat Leon 1.5 TSI EVO 150 Xcellence Lux EZ 5 Dr 3 years 18000 miles/PA ,12/06/2019,138516,"2,655.60",Revenue,Arnold Clark Finance Ltd,20685
Chorley Borough Council,http://statistics.data.gov.uk/id/local-authority/30UE,Central Support Services,1009,Policy & Governance,Car Leasing Payment,14100,Direct Employee Expenses,5001,Car Lease,12/06/2019,138516,259.52,Revenue,Arnold Clark Finance Ltd,20685
Chorley Borough Council,http://statistics.data.gov.uk/id/local-authority/30UE,Unapportionable Central OHeads,1009,Policy & Governance,Car Leasing Payment,14100,Direct Employee Expenses,5001,Quote: 07263518 NAME REDACTED VW T-Roc 1.5 TSI EVO R Line 5dr Hatch 6sp 3 Years 7000 miles/PA,19/06/2019,138699,"2,713.68",Revenue,Arnold Clark Finance Ltd,20685
Chorley Borough Council,http://statistics.data.gov.uk/id/local-authority/30UE,Central Support Services,1009,Customer & Digital,ICT Software Implementation,40114,Communication and Computing,5028,"Atlantics Geomatics Burial Ground Management Software design and implementation.  Mapping, migration & Scanning registers",12/06/2019,136842,594.00,Revenue,Atlantic Geomatics (int`l) Ltd,77816
Chorley Borough Council,http://statistics.data.gov.uk/id/local-authority/30UE,Central Support Services,1009,Customer & Digital,ICT Software Implementation,40114,Communication and Computing,5028,"Atlantics Geomatics Burial Ground Management Software design and implementation.  Mapping, migration & Scanning registers",12/06/2019,137685,656.48,Revenue,Atlantic Geomatics (int`l) Ltd,77816
Chorley Borough Council,http://statistics.data.gov.uk/id/local-authority/30UE,Control Accounts,Control,Policy & Governance,General Balances,100,Balance Sheet,Balance,,10/06/2019,136839,"5,360.12",Revenue,Barclaycard Commercial,59848
Chorley Borough Council,http://statistics.data.gov.uk/id/local-authority/30UE,Control Accounts,Control,Policy & Governance,General Balances,100,Balance Sheet,Balance,,10/06/2019,137576,"3,036.20",Revenue,Barclaycard Commercial,59848
Chorley Borough Council,http://statistics.data.gov.uk/id/local-authority/30UE,Corporate Management,1008,Policy & Governance,Bank Charges,40151,Miscellaneous Expenses,5034,Bank Charges,10/06/2019,137147,373.77,Revenue,Barclaycard Merchant Services,61601
Chorley Borough Council,http://statistics.data.gov.uk/id/local-authority/30UE,Corporate Management,1008,Policy & Governance,Bank Charges,40151,Miscellaneous Expenses,5034,Bank Charges,10/06/2019,137147,15.00,Revenue,Barclaycard Merchant Services,61601
Chorley Borough Council,http://statistics.data.gov.uk/id/local-authority/30UE,Corporate Management,1008,Policy & Governance,Bank Charges,40151,Miscellaneous Expenses,5034,Bank Charges,10/06/2019,137149,15.00,Revenue,Barclaycard Merchant Services,61601
Chorley Borough Council,http://statistics.data.gov.uk/id/local-authority/30UE,Corporate Management,1008,Policy & Governance,Bank Charges,40151,Miscellaneous Expenses,5034,Bank Charges,10/06/2019,137149,"1,174.52",Revenue,Barclaycard Merchant Services,61601
Chorley Borough Council,http://statistics.data.gov.uk/id/local-authority/30UE,Corporate Management,1008,Policy & Governance,Bank Charges,40151,Miscellaneous Expenses,5034,Bank Charges,10/06/2019,137150,15.00,Revenue,Barclaycard Merchant Services,61601
Chorley Borough Council,http://statistics.data.gov.uk/id/local-authority/30UE,Corporate Management,1008,Policy & Governance,Bank Charges,40151,Miscellaneous Expenses,5034,Bank Charges,10/06/2019,137150,"2,170.63",Revenue,Barclaycard Merchant Services,61601
Chorley Borough Council,http://statistics.data.gov.uk/id/local-authority/30UE,Corporate Management,1008,Policy & Governance,Bank Charges,40151,Miscellaneous Expenses,5034,Bank Charges,10/06/2019,137815,15.00,Revenue,Barclaycard Merchant Services,61601
Chorley Borough Council,http://statistics.data.gov.uk/id/local-authority/30UE,Precepts and Collection Fund,Precept,Policy & Governance,Council Tax Income,2002,Precepts & Collection Fund,Precept,Bank Charges,10/06/2019,137815,138.00,Revenue,Barclaycard Merchant Services,61601
Chorley Borough Council,http://statistics.data.gov.uk/id/local-authority/30UE,Corporate Management,1008,Policy & Governance,Bank Charges,40151,Miscellaneous Expenses,5034,Bank Charges,10/06/2019,137815,"2,953.78",Revenue,Barclaycard Merchant Services,61601
Chorley Borough Council,http://statistics.data.gov.uk/id/local-authority/30UE,Corporate Management,1008,Policy & Governance,Bank Charges,40151,Miscellaneous Expenses,5034,Bank Charges,10/06/2019,137816,15.00,Revenue,Barclaycard Merchant Services,61601
Chorley Borough Council,http://statistics.data.gov.uk/id/local-authority/30UE,Corporate Management,1008,Policy & Governance,Bank Charges,40151,Miscellaneous Expenses,5034,Bank Charges,10/06/2019,137816,"1,308.80",Revenue,Barclaycard Merchant Services,61601
Chorley Borough Council,http://statistics.data.gov.uk/id/local-authority/30UE,Corporate Management,1008,Policy & Governance,Bank Charges,40151,Miscellaneous Expenses,5034,Bank Charges,10/06/2019,137817,15.00,Revenue,Barclaycard Merchant Services,61601
Chorley Borough Council,http://statistics.data.gov.uk/id/local-authority/30UE,Corporate Management,1008,Policy & Governance,Bank Charges,40151,Miscellaneous Expenses,5034,Bank Charges,10/06/2019,137817,500.98,Revenue,Barclaycard Merchant Services,61601
Chorley Borough Council,http://statistics.data.gov.uk/id/local-authority/30UE,Capital,Capital,Early Intervention,Grants,3002,Capital Expenditure,Capital,ADDRESS REDACTED,04/06/2019,138306,"7,500.00",Capital,Barlow Construct & Renovation,16609
Chorley Borough Council,http://statistics.data.gov.uk/id/local-authority/30UE,Capital,Capital,Early Intervention,Grants,3002,Capital Expenditure,Capital,architect relating to DFG fee ADDRESS REDACTED,28/06/2019,138978,"2,889.50",Capital,Ben Jurin,77705
Chorley Borough Council,http://statistics.data.gov.uk/id/local-authority/30UE,Democratic Represent and  Mgnt,1007,Business Development & Growth,Other Fees,40212,Miscellaneous Expenses,5034,Chorley Council Growth Lancashire Membership 01/04/2019 - 31/03/2020,06/06/2019,138113,"15,000.00",Revenue,Blackburn with Darwen Borough Council,21000
Chorley Borough Council,http://statistics.data.gov.uk/id/local-authority/30UE,Central Support Services,1009,Business Development & Growth,Professional Fees,40063,Services,5027,Earthworks and Drainage Feasibility at ADDRESS REDACTED,26/06/2019,138959,"4,000.00",Revenue,Booth King Partnership Limited,78051
Chorley Borough Council,http://statistics.data.gov.uk/id/local-authority/30UE,Capital,Capital,Business Development & Growth,Other Contractor,3012,Capital Expenditure,Capital,"quote BQRA31/818090/JN Relocate Telegraph pole - Clifford Street, PR7 1FD ",19/06/2019,138676,"1,218.24",Capital,British Telecom,17189
Chorley Borough Council,http://statistics.data.gov.uk/id/local-authority/30UE,Central Support Services,1009,Customer & Digital,Telephones - Rentals,40083,Communication and Computing,5028,Telephone Rentals,12/06/2019,138520,"3,204.68",Revenue,BT Redcare,21115
Chorley Borough Council,http://statistics.data.gov.uk/id/local-authority/30UE,Democratic Represent and  Mgnt,1007,Policy & Governance,Grants To Other Organisations,40127,Grants and Subscriptions,5031,comm grant,06/06/2019,138441,250.00,Revenue,Buttermere Tots and Parents Group,77876
Chorley Borough Council,http://statistics.data.gov.uk/id/local-authority/30UE,Service Management & Support,1009,Customer & Digital,Supplies-Grounds Maintenance,40025,"Equipment, Furniture & Materia",5023,Bengal Street � Empty Interceptor  12 x 325.00 per visit,06/06/2019,138183,325.00,Revenue,C J Lyon,16579
Chorley Borough Council,http://statistics.data.gov.uk/id/local-authority/30UE,Service Management & Support,1009,Customer & Digital,Supplies-Grounds Maintenance,40025,"Equipment, Furniture & Materia",5023,Rowan Croft pond  4 x 130.00 per visit 4 visits between 01/04/2019 - 31/03/2020,06/06/2019,138183,130.00,Revenue,C J Lyon,16579
Chorley Borough Council,http://statistics.data.gov.uk/id/local-authority/30UE,Service Management & Support,1009,Customer & Digital,Supplies-Grounds Maintenance,40025,"Equipment, Furniture & Materia",5023,High Meadow pond  4 x 130.00 per visit 4 visits between 01/07/2019 - 31/03/2020,06/06/2019,138183,130.00,Revenue,C J Lyon,16579
Chorley Borough Council,http://statistics.data.gov.uk/id/local-authority/30UE,Service Management & Support,1009,Customer & Digital,Supplies-Grounds Maintenance,40025,"Equipment, Furniture & Materia",5023,Bengal Street � Empty Interceptor  12 x 325.00 per visit,06/06/2019,138352,325.00,Revenue,C J Lyon,16579
Chorley Borough Council,http://statistics.data.gov.uk/id/local-authority/30UE,Service Management & Support,1009,Customer & Digital,Vehicles and Plant Maintenance,30045,Direct Transport Costs,5016,RV14 DVB- Main engine service and MOT rectify faults found,04/06/2019,138338,"2,527.43",Revenue,C P Davidson & Sons Ltd,21093
Chorley Borough Council,http://statistics.data.gov.uk/id/local-authority/30UE,Service Management & Support,1009,Customer & Digital,Vehicles and Plant Maintenance,30045,Direct Transport Costs,5016,exempt,04/06/2019,138338,113.00,Revenue,C P Davidson & Sons Ltd,21093
Chorley Borough Council,http://statistics.data.gov.uk/id/local-authority/30UE,Unapportionable Central OHeads,1009,Customer & Digital,Emergency Call Out System,40096,Communication and Computing,5028,Out of Hours call charges 19/20,12/06/2019,138502,322.56,Revenue,CallCare Ltd,20257
Chorley Borough Council,http://statistics.data.gov.uk/id/local-authority/30UE,Unapportionable Central OHeads,1009,Customer & Digital,Emergency Call Out System,40096,Communication and Computing,5028,Out of Hours standing charge 19/20,12/06/2019,138502,120.00,Revenue,CallCare Ltd,20257
Chorley Borough Council,http://statistics.data.gov.uk/id/local-authority/30UE,Unapportionable Central OHeads,1009,Policy & Governance,Refuse Collection,20037,Cleaning and Domestic Supplies,5012,"Provision of all services to Council sites Fragrances, mats, medical waste, vending machines April 19 to March 20",27/06/2019,138276,"1,171.21",Revenue,Cannon Hygiene Limited,18158
Chorley Borough Council,http://statistics.data.gov.uk/id/local-authority/30UE,Central Support Services,1009,Customer & Digital,Miscellaneous Expenses,40200,Miscellaneous Expenses,5034,e change,26/06/2019,138461,"22,500.00",Revenue,Capita Business Services Ltd,17151
Chorley Borough Council,http://statistics.data.gov.uk/id/local-authority/30UE,Unapportionable Central OHeads,1009,Customer & Digital,Computer - Support Services,40111,Communication and Computing,5028,Purchase order for Capita to provide a set of SQL queries to determine the required data values for the NNDR 3  return,27/06/2019,138581,500.00,Revenue,Capita Business Services Ltd,17151
Chorley Borough Council,http://statistics.data.gov.uk/id/local-authority/30UE,Elections,1012,Policy & Governance,Rent/Hire Of Premises,20017,Premises Rents,5007,room hire for polling station for European Elections.,04/06/2019,138346,250.00,Revenue,Charnock Richard Scouts & Guides,22314
Chorley Borough Council,http://statistics.data.gov.uk/id/local-authority/30UE,Parking Services,1066,Business Development & Growth,External Contractors,50008,Private Contractors,5042,"Apr 19 to Mar 20 Automated Telephone and Internet Payments/Evidence & Submission Services, Telephone Assistance to Public",27/06/2019,138867,678.03,Revenue,Chipside Ltd,22063
Chorley Borough Council,http://statistics.data.gov.uk/id/local-authority/30UE,Parking Services,1066,Business Development & Growth,External Contractors,50008,Private Contractors,5042,"Processing 075, 076, 077, 079, 080, 085, 086, 010, 011 MIPERMIT FEES / CHARGE / ELECPAYBANKFEE",27/06/2019,138867,81.60,Revenue,Chipside Ltd,22063
Chorley Borough Council,http://statistics.data.gov.uk/id/local-authority/30UE,Democratic Represent and  Mgnt,1007,Policy & Governance,Other Contributions,40145,Grants and Subscriptions,5031,Contributions,28/06/2019,138969,"7,500.00",Revenue,Chorley and District Mencap Society,60828
Chorley Borough Council,http://statistics.data.gov.uk/id/local-authority/30UE,Corporate Management,1008,Customer & Digital,Taxi Testing & Vehicle Safety Report,40234,Services,5027,MOT,14/06/2019,138464,"1,590.65",Revenue,Chorley Autocare Ltd,17110
Chorley Borough Council,http://statistics.data.gov.uk/id/local-authority/30UE,Corporate Management,1008,Customer & Digital,Taxi Testing & Vehicle Safety Report,40234,Services,5027,Tax Test,14/06/2019,138464,247.95,Revenue,Chorley Autocare Ltd,17110
Chorley Borough Council,http://statistics.data.gov.uk/id/local-authority/30UE,Service Management & Support,1009,Customer & Digital,Vehicles and Plant Maintenance,30045,Direct Transport Costs,5016,RV14 DVB- 2x new tyres- Disposal,26/06/2019,138654,366.00,Revenue,Chorley Tyres,53719
Chorley Borough Council,http://statistics.data.gov.uk/id/local-authority/30UE,Community Development,1097,Policy & Governance,Core Funding Grants,40133,Grants and Subscriptions,5031,Year 3 commission for the delivery of a support service for vulnerable adults (women) In Chorley,19/06/2019,138659,"7,500.00",Revenue,Chorley Womens Centre,17036
Chorley Borough Council,http://statistics.data.gov.uk/id/local-authority/30UE,Central Support Services,1009,Business Development & Growth,Training Course Fees,17010,Indirect Employee Expenses,5002,Literacy Basics course costs for May,14/06/2019,138554,525.00,Revenue,Christine Edwards,77601
Chorley Borough Council,http://statistics.data.gov.uk/id/local-authority/30UE,Unapportionable Central OHeads,1009,Business Development & Growth,Fire Alarms,20072,Fixtures and Fittings,5010,Blanket reactive for fire,14/06/2019,136916,294.70,Revenue,Chubb Electronic Sec Sys Ltd,16228
Chorley Borough Council,http://statistics.data.gov.uk/id/local-authority/30UE,Unapportionable Central OHeads,1009,Business Development & Growth,Fire Alarms,20072,Fixtures and Fittings,5010,Blanket reactive for fire,14/06/2019,136917,289.65,Revenue,Chubb Electronic Sec Sys Ltd,16228
Chorley Borough Council,http://statistics.data.gov.uk/id/local-authority/30UE,Homelessness,1075,Early Intervention,IT Software - Annual Licences,40101,Communication and Computing,5028,"Jul/2019 - Jun/2020 (Ref: LSM6494ABR) Hosting, Support & Maintenance, SSL Security on test site ",19/06/2019,138730,"10,378.11",Revenue,Civica UK Limited,17463
Chorley Borough Council,http://statistics.data.gov.uk/id/local-authority/30UE,Homelessness,1075,Early Intervention,IT Software - Annual Licences,40101,Communication and Computing,5028,"Jul/2019 TO Jun/2020  PLACES FOR PEOPLE (ref: LSM6500ABR) Hosting, Support & Maintenance, SSL Security, Disaster",19/06/2019,138731,"4,946.54",Revenue,Civica UK Limited,17463
Chorley Borough Council,http://statistics.data.gov.uk/id/local-authority/30UE,Homelessness,1075,Early Intervention,IT Software - Annual Licences,40101,Communication and Computing,5028,"Jul/2019 TO Jun/2020 Chorley Community Housing (Ref: LSM6496ABR) Hosting, Support & Maintenance, SSL Security",19/06/2019,138732,"4,946.54",Revenue,Civica UK Limited,17463
Chorley Borough Council,http://statistics.data.gov.uk/id/local-authority/30UE,Capital,Capital,Business Development & Growth,Main Contractor,3007,Capital Expenditure,Capital,Landscape and Ecological Improvements at The Willows as set out in the tender specification and pricing schedule.,12/06/2019,138525,"20,000.00",Capital,Conservation Contracts North West,20520
Chorley Borough Council,http://statistics.data.gov.uk/id/local-authority/30UE,Unapportionable Central OHeads,1009,Business Development & Growth,Asset Maintenance Fund,20012,Repairs Maintenance & Alts,5005,Blanket refugee reactive,06/06/2019,138238,335.56,Revenue,Corlett Electrical Eng Co Ltd,16271
Chorley Borough Council,http://statistics.data.gov.uk/id/local-authority/30UE,Business Support,1095,Business Development & Growth,Fixtures & Fittings - Purchase,20027,Fixtures and Fittings,5010,"Replace 12 existing light fittings on columns with decorative LED fittings, built in photocell, new cabling to fuse",14/06/2019,138626,"7,180.00",Revenue,Corlett Electrical Eng Co Ltd,16271
Chorley Borough Council,http://statistics.data.gov.uk/id/local-authority/30UE,Homelessness,1075,Business Development & Growth,Gas,20014,Energy Costs,5006,apr19 to may19,07/06/2019,138363,"1,210.40",Revenue,Corona Energy Retail 2 Ltd,67249
Chorley Borough Council,http://statistics.data.gov.uk/id/local-authority/30UE,Recreation & Sport,1037,Business Development & Growth,Gas,20014,Energy Costs,5006,apr19 to may19,07/06/2019,138366,874.87,Revenue,Corona Energy Retail 2 Ltd,67249
Chorley Borough Council,http://statistics.data.gov.uk/id/local-authority/30UE,Unapportionable Central OHeads,1009,Business Development & Growth,Gas,20014,Energy Costs,5006,apr19 to may19,07/06/2019,138378,"1,037.00",Revenue,Corona Energy Retail 2 Ltd,67249
Chorley Borough Council,http://statistics.data.gov.uk/id/local-authority/30UE,Unapportionable Central OHeads,1009,Business Development & Growth,Gas,20014,Energy Costs,5006,apr19 to may19,07/06/2019,138380,451.24,Revenue,Corona Energy Retail 2 Ltd,67249
Chorley Borough Council,http://statistics.data.gov.uk/id/local-authority/30UE,Democratic Represent and  Mgnt,1007,Business Development & Growth,Gas,20014,Energy Costs,5006,apr19 to may19,07/06/2019,138388,816.28,Revenue,Corona Energy Retail 2 Ltd,67249
Chorley Borough Council,http://statistics.data.gov.uk/id/local-authority/30UE,Unapportionable Central OHeads,1009,Business Development & Growth,Gas,20014,Energy Costs,5006,apr19 to may19,07/06/2019,138389,625.13,Revenue,Corona Energy Retail 2 Ltd,67249
Chorley Borough Council,http://statistics.data.gov.uk/id/local-authority/30UE,Homelessness,1075,Business Development & Growth,Gas,20014,Energy Costs,5006,may-jun-19,26/06/2019,138766,851.23,Revenue,Corona Energy Retail 2 Ltd,67249
Chorley Borough Council,http://statistics.data.gov.uk/id/local-authority/30UE,Unapportionable Central OHeads,1009,Business Development & Growth,Gas,20014,Energy Costs,5006,may-jun-19,26/06/2019,138773,979.20,Revenue,Corona Energy Retail 2 Ltd,67249
Chorley Borough Council,http://statistics.data.gov.uk/id/local-authority/30UE,Unapportionable Central OHeads,1009,Business Development & Growth,Gas,20014,Energy Costs,5006,may-jun-19,26/06/2019,138774,"1,785.19",Revenue,Corona Energy Retail 2 Ltd,67249
Chorley Borough Council,http://statistics.data.gov.uk/id/local-authority/30UE,Democratic Represent and  Mgnt,1007,Business Development & Growth,Gas,20014,Energy Costs,5006,may-jun-19,26/06/2019,138775,351.32,Revenue,Corona Energy Retail 2 Ltd,67249
Chorley Borough Council,http://statistics.data.gov.uk/id/local-authority/30UE,Democratic Represent and  Mgnt,1007,Business Development & Growth,Gas,20014,Energy Costs,5006,may-jun19,26/06/2019,138777,470.21,Revenue,Corona Energy Retail 2 Ltd,67249
Chorley Borough Council,http://statistics.data.gov.uk/id/local-authority/30UE,Capital,Capital,Customer & Digital,Equipment,3014,Capital Expenditure,Capital,240 litre wheeled Bin  (including RFID chip fitted) Colour : Grey Quantity 600 Chorley Logo,26/06/2019,138693,"9,780.00",Capital,Craemer UK Ltd,64712
Chorley Borough Council,http://statistics.data.gov.uk/id/local-authority/30UE,Service Management & Support,1009,Customer & Digital,Diesel/Derv,30007,Direct Transport Costs,5016,as per quotation on the chest 5000L DERV @ 1.0175 per litre,12/06/2019,138482,"5,087.50",Revenue,Crown Oil Ltd,16739
Chorley Borough Council,http://statistics.data.gov.uk/id/local-authority/30UE,Service Management & Support,1009,Customer & Digital,Diesel/Derv,30007,Direct Transport Costs,5016,as per quotation on the chest 2000L Gas Oil @ 0.5520 per litre,12/06/2019,138485,"1,104.00",Revenue,Crown Oil Ltd,16739
Chorley Borough Council,http://statistics.data.gov.uk/id/local-authority/30UE,Business Support,1095,Business Development & Growth,Miscellaneous Expenses,40200,Miscellaneous Expenses,5034,For facilitation services of annual Choose Chorley Business Evening - Thursday 11 July 2019,14/06/2019,138576,500.00,Revenue,Dave Guest,19221
Chorley Borough Council,http://statistics.data.gov.uk/id/local-authority/30UE,Central Support Services,1009,Customer & Digital,Miscellaneous Expenses,40200,Miscellaneous Expenses,5034,"Works completed at The Goit footpath, Brinscall Neighbourhood project",04/06/2019,138165,500.00,Revenue,Derek R Smith,21092
Chorley Borough Council,http://statistics.data.gov.uk/id/local-authority/30UE,Democratic Represent and  Mgnt,1007,Policy & Governance,Other Contributions,40145,Grants and Subscriptions,5031,Donation from the Mayor`s Charity Appeal 2018-19.,28/06/2019,138968,"6,320.00",Revenue,Derian House Childrens` Hospice,18881
Chorley Borough Council,http://statistics.data.gov.uk/id/local-authority/30UE,Corporate Management,1008,Policy & Governance,Corp Training Organisational Development,17006,Indirect Employee Expenses,5002,Emergency 1st Aid at Work 1 day course - 30/05/19 for 11 participants,19/06/2019,138550,550.00,Revenue,DGF First Aid Training,72087
Chorley Borough Council,http://statistics.data.gov.uk/id/local-authority/30UE,Democratic Represent and  Mgnt,1007,Policy & Governance,Tools & Equipment - Purchase,40003,"Equipment, Furniture & Materia",5023,"10 x white ivy leaf tablecloths 108`` round. Delivery to NAME REDACTED, Chorley Town Hall, by 19th June (earlier if possible).",27/06/2019,138628,339.70,Revenue,Direct Linen Textiles International Ltd,65206
Chorley Borough Council,http://statistics.data.gov.uk/id/local-authority/30UE,Democratic Represent and  Mgnt,1007,Policy & Governance,General Subscriptions,40146,Grants and Subscriptions,5031,Annual membership subscription 2019/20,28/06/2019,138901,868.00,Revenue,District Councils Network,58156
Chorley Borough Council,http://statistics.data.gov.uk/id/local-authority/30UE,Unapportionable Central OHeads,1009,Policy & Governance,Postages,40082,Communication and Computing,5028,DX renewal subscription for 01.05.19 - 30.04.20,12/06/2019,138014,332.68,Revenue,DX Network Services Ltd,17551
Chorley Borough Council,http://statistics.data.gov.uk/id/local-authority/30UE,Capital,Capital,Business Development & Growth,Main Contractor,3007,Capital Expenditure,Capital,"The Willows - Eaves Green - Supervision of newt fence installation, clearance trapping over 30 days and mileage.",04/06/2019,138377,"4,022.50",Capital,Ecology Services,58852
Chorley Borough Council,http://statistics.data.gov.uk/id/local-authority/30UE,Central Support Services,1009,Customer & Digital,Consultants` Fees,40077,Services,5027,2 X DAYS FOR ACADEMY @ 400,04/06/2019,138309,800.00,Revenue,EDM Consulting Ltd,55511
Chorley Borough Council,http://statistics.data.gov.uk/id/local-authority/30UE,Central Support Services,1009,Customer & Digital,Mobile Voice and Data,40086,Communication and Computing,5028,Mobile Voice and Data,14/06/2019,138563,"2,061.82",Revenue,EE - Orange,16486
Chorley Borough Council,http://statistics.data.gov.uk/id/local-authority/30UE,Economic Development,1096,Business Development & Growth,Professional Fees,40063,Services,5027,Chorley Economic fund - fees,06/06/2019,138186,"5,500.00",Revenue,EKOSGEN,71520
Chorley Borough Council,http://statistics.data.gov.uk/id/local-authority/30UE,Unapportionable Central OHeads,1009,Business Development & Growth,Planned Maintenance,20006,Repairs Maintenance & Alts,5005,PPM Blanket Order from Jan 2019,06/06/2019,138208,262.90,Revenue,Ellesmere Engineering Co Ltd,17520
Chorley Borough Council,http://statistics.data.gov.uk/id/local-authority/30UE,Capital,Capital,Business Development & Growth,Equipment,3014,Capital Expenditure,Capital,New boiler at Brinscall baths as instructed in April 2019,12/06/2019,138494,"6,247.97",Capital,Ellesmere Engineering Co Ltd,17520
Chorley Borough Council,http://statistics.data.gov.uk/id/local-authority/30UE,Capital,Capital,Business Development & Growth,Main Contractor,3007,Capital Expenditure,Capital,Market Walk Extension Contract - Phase 2,26/06/2019,138582,"1,048,780.34",Capital,Eric Wright Construction Ltd,76464
Chorley Borough Council,http://statistics.data.gov.uk/id/local-authority/30UE,Unapportionable Central OHeads,1009,Customer & Digital,Stationery,40050,"Printing, Stationery & General",5026,200 X bespoke pre-printed Chorley Council staff ID badges as per quote 599.122471,19/06/2019,138690,304.00,Revenue,Essentra Security,66416
Chorley Borough Council,http://statistics.data.gov.uk/id/local-authority/30UE,Unapportionable Central OHeads,1009,Customer & Digital,Stationery,40050,"Printing, Stationery & General",5026,Standard Delivery,19/06/2019,138690,9.50,Revenue,Essentra Security,66416
Chorley Borough Council,http://statistics.data.gov.uk/id/local-authority/30UE,Corporate Management,1008,Customer & Digital,Printing,40043,"Printing, Stationery & General",5026,Chorley Garden Waste Collection Permits 2019-2020,19/06/2019,138530,"4,119.96",Revenue,Euro Labels Printers Ltd,77202
Chorley Borough Council,http://statistics.data.gov.uk/id/local-authority/30UE,Central Support Services,1009,Early Intervention,Miscellaneous Expenses,40200,Miscellaneous Expenses,5034,neighbourhood working,28/06/2019,138983,"1,120.00",Revenue,Euxton Parish Council,16838
Chorley Borough Council,http://statistics.data.gov.uk/id/local-authority/30UE,Democratic Represent and  Mgnt,1007,Customer & Digital,Supplies-Grounds Maintenance,40025,"Equipment, Furniture & Materia",5023,"60 x 5 litre Lavendar, 80 x 3litre Coreopsis Grandiflora `Sunray`",04/06/2019,138341,875.00,Revenue,Everglades Nurseries Ltd,20202
Chorley Borough Council,http://statistics.data.gov.uk/id/local-authority/30UE,Democratic Represent and  Mgnt,1007,Customer & Digital,Supplies-Grounds Maintenance,40025,"Equipment, Furniture & Materia",5023,200 - 5 litre Lavandula `Hidcote`,14/06/2019,138620,"1,650.00",Revenue,Everglades Nurseries Ltd,20202
Chorley Borough Council,http://statistics.data.gov.uk/id/local-authority/30UE,Democratic Represent and  Mgnt,1007,Customer & Digital,Supplies-Grounds Maintenance,40025,"Equipment, Furniture & Materia",5023,150 - 5 litre Lavandula `Hidcote`,28/06/2019,138964,"1,237.50",Revenue,Everglades Nurseries Ltd,20202
Chorley Borough Council,http://statistics.data.gov.uk/id/local-authority/30UE,Service Management & Support,1009,Customer & Digital,Vehicles and Plant Maintenance,30045,Direct Transport Costs,5016,"BUGSCREEN, BUG SCREEN, BALL BEARINGx10, REAR LAMP, LATCH,CABLE, CENTRAL,SPINDLEx2, BEARINGx4",04/06/2019,138187,517.18,Revenue,F R Sharrock Ltd,18091
Chorley Borough Council,http://statistics.data.gov.uk/id/local-authority/30UE,Service Management & Support,1009,Customer & Digital,Vehicles and Plant Maintenance,30045,Direct Transport Costs,5016,"12x BOTTOM BLADE N0 8 THK,96x SCREW-CSK 3/8-16X11/16, 1 x WIDE,ANGLE COVER SET, 1 x IDLER,PULLEY",26/06/2019,138679,415.81,Revenue,F R Sharrock Ltd,18091
Chorley Borough Council,http://statistics.data.gov.uk/id/local-authority/30UE,Service Management & Support,1009,Customer & Digital,Vehicles and Plant Maintenance,30045,Direct Transport Costs,5016,"REPLACED SMASHED REAR WINDOW on PO67 BYU, CAB GLASS, CALL OUT ON SITE REPAIR, CONSUMABLES",26/06/2019,138694,506.16,Revenue,F R Sharrock Ltd,18091
Chorley Borough Council,http://statistics.data.gov.uk/id/local-authority/30UE,Service Management & Support,1009,Customer & Digital,Vehicles and Plant Maintenance,30045,Direct Transport Costs,5016,ATTENDED SITE AND REMOVED PTO SHAFT FROM FLAIL. CUT SHAFT DOWN TO SIZE AND GREASED. ,26/06/2019,138811,283.08,Revenue,F R Sharrock Ltd,18091
Chorley Borough Council,http://statistics.data.gov.uk/id/local-authority/30UE,Elections,1012,Policy & Governance,Rent/Hire Of Premises,20017,Premises Rents,5007,Hire of room for polling station for borough elections 2 May 2019 and European elections 23 May 2019,06/06/2019,138431,279.00,Revenue,Fairview Youth & Community Association,20589
Chorley Borough Council,http://statistics.data.gov.uk/id/local-authority/30UE,Tourism,1039,Policy & Governance,External Contractor,40198,Miscellaneous Expenses,5034,"Supply, fitting, hire and removal for Marquees for the Flower Show 2019 From 15 July until Wed 31 July",21/06/2019,137857,"34,369.44",Revenue,Field and Lawn Ltd,74977
Chorley Borough Council,http://statistics.data.gov.uk/id/local-authority/30UE,Tourism,1039,Policy & Governance,External Contractor,40198,Miscellaneous Expenses,5034,"Supply, fitting, hire and removal for Marquees for the Flower Show 2019 From 15 July until Wed 31 July",26/06/2019,138692,314.82,Revenue,Field and Lawn Ltd,74977
Chorley Borough Council,http://statistics.data.gov.uk/id/local-authority/30UE,Parking Services,1066,Business Development & Growth,External Contractors,50008,Private Contractors,5042,"Maintenance contract No UK5-361 for  x20 machines (3 to be added pro-rata), various locations in Chorley for 01.07.19-30.06.20",21/06/2019,138706,"11,548.94",Revenue,Flow Bird Smart City UK Ltd,16279
Chorley Borough Council,http://statistics.data.gov.uk/id/local-authority/30UE,Unapportionable Central OHeads,1009,Policy & Governance,Legal Fees,40171,Miscellaneous Expenses,5034,Professional fees from 26.04.19 - 28.05.19,12/06/2019,138547,"1,492.00",Revenue,Forbes Solicitors,17527
Chorley Borough Council,http://statistics.data.gov.uk/id/local-authority/30UE,Service Management & Support,1009,Customer & Digital,Tools & Equipment - Maintenance,40005,"Equipment, Furniture & Materia",5023,"RV14DVB, PN66RCU, 12 Apr 19 2 Axled Vehicle Roadworthiness ",04/06/2019,138179,385.80,Revenue,Freight Transport Assoc Ltd,16333
Chorley Borough Council,http://statistics.data.gov.uk/id/local-authority/30UE,Business Support,1095,Business Development & Growth,Gas,20014,Energy Costs,5006,1/5/19 to 31/5/19,26/06/2019,138636,505.05,Revenue,Gazprom Energy,56502
Chorley Borough Council,http://statistics.data.gov.uk/id/local-authority/30UE,Democratic Represent and  Mgnt,1007,Customer & Digital,Playground Equipment,40008,"Equipment, Furniture & Materia",5023,4 Sutcliffe Pod Seats,14/06/2019,138486,640.58,Revenue,GB Sport & Leisure,21305
Chorley Borough Council,http://statistics.data.gov.uk/id/local-authority/30UE,Service Management & Support,1009,Customer & Digital,Vehicles and Plant Maintenance,30045,Direct Transport Costs,5016,as per quotation Q15631 - replace steering column assy fwd/rvs shift lever c/w bush and circlip,28/06/2019,138619,518.73,Revenue,Gibsons Garden Machinery Ltd,17550
Chorley Borough Council,http://statistics.data.gov.uk/id/local-authority/30UE,Democratic Represent and  Mgnt,1007,Policy & Governance,Lifelong Learning Activities,40194,Miscellaneous Expenses,5034,Period costume,06/06/2019,138430,442.70,Revenue,Gloranna Pringle,22525
Chorley Borough Council,http://statistics.data.gov.uk/id/local-authority/30UE,Service Management & Support,1009,Customer & Digital,Hire Of Vehicles and Plant,30028,Contrct Hire & Operating Lease,5018,Hire of Schmidt swingo 200 mini sweeper AE15 SXF,14/06/2019,138166,455.00,Revenue,Go Plant Ltd,77990
Chorley Borough Council,http://statistics.data.gov.uk/id/local-authority/30UE,Service Management & Support,1009,Customer & Digital,Hire Of Vehicles and Plant,30028,Contrct Hire & Operating Lease,5018,Hire of AJ65 PMV Swingo 200 @ 455 per week,26/06/2019,138700,455.00,Revenue,Go Plant Ltd,77990
Chorley Borough Council,http://statistics.data.gov.uk/id/local-authority/30UE,Service Management & Support,1009,Customer & Digital,Supplies-Grounds Maintenance,40025,"Equipment, Furniture & Materia",5023,"10xPoly/wire Swingo brushes, 4xPoly Swingo brushes, 3xVT651 Channel brushes, 3x centre brush for the VT651, delivery charge",26/06/2019,138842,664.80,Revenue,Go Plant Ltd,77990
Chorley Borough Council,http://statistics.data.gov.uk/id/local-authority/30UE,Corporate Management,1008,Customer & Digital,Professional Fees,40063,Services,5027,2019-2020 Garden Waste Subscriptions,14/06/2019,138445,594.13,Revenue,GoCardless,77457
Chorley Borough Council,http://statistics.data.gov.uk/id/local-authority/30UE,Central Support Services,1009,Customer & Digital,Vandalism Repairs,20005,Repairs Maintenance & Alts,5005,Contract for graffiti removal half year 2019 - 2020,21/06/2019,138684,250.00,Revenue,Graffiti Away,76316
Chorley Borough Council,http://statistics.data.gov.uk/id/local-authority/30UE,Corporate Management,1008,Policy & Governance,Promotional Expenses,40159,Miscellaneous Expenses,5034,Social Media Marketing for MW,06/06/2019,138350,500.00,Revenue,Gravity,77837
Chorley Borough Council,http://statistics.data.gov.uk/id/local-authority/30UE,Central Support Services,1009,Business Development & Growth,Operational Employees Salaries,10000,Direct Employee Expenses,5001,Agency fees for building surveyor`s,06/06/2019,138209,615.70,Revenue,Hays Senior Finance,20078
Chorley Borough Council,http://statistics.data.gov.uk/id/local-authority/30UE,Central Support Services,1009,Business Development & Growth,Operational Employees Salaries,10000,Direct Employee Expenses,5001,Agency fees for building surveyor`s,06/06/2019,138210,962.85,Revenue,Hays Senior Finance,20078
Chorley Borough Council,http://statistics.data.gov.uk/id/local-authority/30UE,Central Support Services,1009,Business Development & Growth,Operational Employees Salaries,10000,Direct Employee Expenses,5001,Agency fees for building surveyor`s,06/06/2019,138211,975.95,Revenue,Hays Senior Finance,20078
Chorley Borough Council,http://statistics.data.gov.uk/id/local-authority/30UE,Central Support Services,1009,Business Development & Growth,Operational Employees Salaries,10000,Direct Employee Expenses,5001,Agency fees for building surveyor`s,06/06/2019,138212,"1,004.25",Revenue,Hays Senior Finance,20078
Chorley Borough Council,http://statistics.data.gov.uk/id/local-authority/30UE,Central Support Services,1009,Business Development & Growth,Operational Employees Salaries,10000,Direct Employee Expenses,5001,Agency fees for building surveyor`s,06/06/2019,138213,781.84,Revenue,Hays Senior Finance,20078
Chorley Borough Council,http://statistics.data.gov.uk/id/local-authority/30UE,Central Support Services,1009,Business Development & Growth,Operational Employees Salaries,10000,Direct Employee Expenses,5001,Agency fees for building surveyor`s,06/06/2019,138214,781.84,Revenue,Hays Senior Finance,20078
Chorley Borough Council,http://statistics.data.gov.uk/id/local-authority/30UE,Central Support Services,1009,Business Development & Growth,Operational Employees Salaries,10000,Direct Employee Expenses,5001,Placement Fee for NAME REDACTED,12/06/2019,138446,"5,680.00",Revenue,Hays Senior Finance,20078
Chorley Borough Council,http://statistics.data.gov.uk/id/local-authority/30UE,Central Support Services,1009,Business Development & Growth,Operational Employees Salaries,10000,Direct Employee Expenses,5001,Agency fees for building surveyor`s,26/06/2019,138801,759.80,Revenue,Hays Senior Finance,20078
Chorley Borough Council,http://statistics.data.gov.uk/id/local-authority/30UE,Recreation & Sport,1037,Early Intervention,Planned Maintenance,20006,Repairs Maintenance & Alts,5005,Prepare and repaint walls in acrylic eggshell (2 coats) and gloss skirtings. 289.00,14/06/2019,138344,289.00,Revenue,Henry Nightingale & Son,17923
Chorley Borough Council,http://statistics.data.gov.uk/id/local-authority/30UE,Business Support,1095,Early Intervention,Furniture - Purchase,40012,"Equipment, Furniture & Materia",5023,"Moda Bedside Cabinet, Kelcol single bed - Yorkshire Grey, Head board Grey",28/06/2019,138960,344.00,Revenue,Herbert Dickinson (furniture and Music)  LTD,21931
Chorley Borough Council,http://statistics.data.gov.uk/id/local-authority/30UE,Capital,Capital,Customer & Digital,Other Capital Grants/Loans,3000,Capital Expenditure,Capital,,07/06/2019,138355,"2,674.92",Capital,Heritage Trust for the North West,77042
Chorley Borough Council,http://statistics.data.gov.uk/id/local-authority/30UE,Central Support Services,1009,Business Development & Growth,Professional Fees,40063,Services,5027,Support with Growth Deal Funding Application - Alker Lane,06/06/2019,138277,"1,417.50",Revenue,Hive Land & Planning Limited,77330
Chorley Borough Council,http://statistics.data.gov.uk/id/local-authority/30UE,Central Support Services,1009,Business Development & Growth,Professional Fees,40063,Services,5027,Project management works for Shady Lane Stages 1-4a,06/06/2019,138278,"1,087.50",Revenue,Hive Land & Planning Limited,77330
Chorley Borough Council,http://statistics.data.gov.uk/id/local-authority/30UE,Central Support Services,1009,Business Development & Growth,Professional Fees,40063,Services,5027,Support with Growth Deal Funding Application - Alker Lane,06/06/2019,138284,688.50,Revenue,Hive Land & Planning Limited,77330
Chorley Borough Council,http://statistics.data.gov.uk/id/local-authority/30UE,Central Support Services,1009,Business Development & Growth,Professional Fees,40063,Services,5027,Project management works for Shady Lane Stages 1-4a,26/06/2019,138957,"1,087.50",Revenue,Hive Land & Planning Limited,77330
Chorley Borough Council,http://statistics.data.gov.uk/id/local-authority/30UE,Central Support Services,1009,Business Development & Growth,Professional Fees,40063,Services,5027,Support with Growth Deal Funding Application - Alker Lane,26/06/2019,138958,607.50,Revenue,Hive Land & Planning Limited,77330
Chorley Borough Council,http://statistics.data.gov.uk/id/local-authority/30UE,Capital,Capital,Policy & Governance,Stamp Duty,3026,Capital Expenditure,Capital,sdlt ADDRESS REDACTED,06/06/2019,138452,"17,250.00",Capital,HM Revenue & Customs,56499
Chorley Borough Council,http://statistics.data.gov.uk/id/local-authority/30UE,Capital,Capital,Policy & Governance,Stamp Duty,3026,Capital Expenditure,Capital,ADDRESS REDACTED SDLT,06/06/2019,138457,"3,950.00",Capital,HM Revenue & Customs,56499
Chorley Borough Council,http://statistics.data.gov.uk/id/local-authority/30UE,Democratic Represent and  Mgnt,1007,Policy & Governance,Other Contributions,40145,Grants and Subscriptions,5031,Donation from the Mayor`s Charity Appeal 2018-19.,28/06/2019,138976,"10,000.00",Revenue,Home-Start Central Lancashire Ltd,20585
Chorley Borough Council,http://statistics.data.gov.uk/id/local-authority/30UE,Business Support,1095,Business Development & Growth,Miscellaneous Expenses,40200,Miscellaneous Expenses,5034,Digital Office Park Chorley - Architectural and Principal Designer Services,06/06/2019,138321,"1,127.00",Revenue,Howarth Litchfield Partnership,76440
Chorley Borough Council,http://statistics.data.gov.uk/id/local-authority/30UE,Business Support,1095,Business Development & Growth,Miscellaneous Expenses,40200,Miscellaneous Expenses,5034,Digital Office Park Chorley - Architectural and Principal Designer Services,12/06/2019,138553,"1,127.00",Revenue,Howarth Litchfield Partnership,76440
Chorley Borough Council,http://statistics.data.gov.uk/id/local-authority/30UE,Corporate Management,1008,Policy & Governance,Other Fees,40212,Miscellaneous Expenses,5034,Subsidy for the provision of a meals on wheels service in Chorley up to 26/5/19,04/06/2019,138232,"1,911.00",Revenue,I Care GB Ltd,77247
Chorley Borough Council,http://statistics.data.gov.uk/id/local-authority/30UE,Business Support,1095,Business Development & Growth,Miscellaneous Expenses,40200,Miscellaneous Expenses,5034,Project Management consultancy services for the Digital Office Park project,12/06/2019,138535,"1,800.00",Revenue,Identity Consult Ltd,76426
Chorley Borough Council,http://statistics.data.gov.uk/id/local-authority/30UE,Central Support Services,1009,Customer & Digital,IT Software - Annual Licences,40101,Communication and Computing,5028,Uniform Software and Maintenance Agreement 2019 - Year 4,26/06/2019,137072,"22,500.00",Revenue,IDOX Software Limited,17542
Chorley Borough Council,http://statistics.data.gov.uk/id/local-authority/30UE,Service Management & Support,1009,Customer & Digital,Supplies-Grounds Maintenance,40025,"Equipment, Furniture & Materia",5023,"60,000 White Opaque bin bags Printed �Chorley Council� in Black Ink - Random Repeat - One Side Only Rolls of 25 Boxed: 500�s",14/06/2019,138606,"3,540.00",Revenue,Imperial Polythene Products LTD,77180
Chorley Borough Council,http://statistics.data.gov.uk/id/local-authority/30UE,Other Short Term Creditors,,Policy & Governance,General Balances,100,Balance Sheet,Balance,Tax and NI for May 19 Elections,19/06/2019,138806,"9,382.00",Revenue,Inland Revenue REF REDACTED,77147
Chorley Borough Council,http://statistics.data.gov.uk/id/local-authority/30UE,Control Accounts,Control,System,Manual Control Account,1,Balance Sheet,Balance,,14/06/2019,138299,"3,380.00",Revenue,Inland Revenue REF REDACTED,17445
Chorley Borough Council,http://statistics.data.gov.uk/id/local-authority/30UE,Business Support,1095,Business Development & Growth,Refuse Collection,20037,Cleaning and Domestic Supplies,5012,Waste Compactor Rental Services @ 270 per month for 01 April 2019 - 31 March 2020,04/06/2019,138333,270.00,Revenue,J&H Rentals Limited,70699
Chorley Borough Council,http://statistics.data.gov.uk/id/local-authority/30UE,Unapportionable Central OHeads,1009,Business Development & Growth,Planned Maintenance,20006,Repairs Maintenance & Alts,5005,Print Room Air Con Works,07/06/2019,138215,"2,572.00",Revenue,James Mercer,20194
Chorley Borough Council,http://statistics.data.gov.uk/id/local-authority/30UE,Democratic Represent and  Mgnt,1007,Policy & Governance,Consultants` Fees,40077,Services,5027,"Consultant Conservator - 4 days Friday 10th, 17th and 31st May plus one day completing condition reports off site.",12/06/2019,138480,"1,000.00",Revenue,Janice Porter,77769
Chorley Borough Council,http://statistics.data.gov.uk/id/local-authority/30UE,Planning Policy,1092,Business Development & Growth,Professional Fees,40063,Services,5027,Undertake a Strategic Flood Risk Assessment Update for the Central Lancashire Local Plan. The Chest reference: DN378519.,04/06/2019,136958,"1,600.00",Revenue,JBA Consulting,77859
Chorley Borough Council,http://statistics.data.gov.uk/id/local-authority/30UE,Service Management & Support,1009,Customer & Digital,Supplies-Grounds Maintenance,40025,"Equipment, Furniture & Materia",5023,Street name plate posts (1200mm x 76mm) fully galvanised (one pallet) one pallet of postcrete - to deliver to Bengal St depot,04/06/2019,138157,279.30,Revenue,Jewsons Limited,17844
Chorley Borough Council,http://statistics.data.gov.uk/id/local-authority/30UE,Service Management & Support,1009,Customer & Digital,Supplies-Grounds Maintenance,40025,"Equipment, Furniture & Materia",5023,Street name plate posts (1200mm x 76mm) fully galvanised (one pallet) one pallet of postcrete - to deliver to Bengal St depot,12/06/2019,138472,906.00,Revenue,Jewsons Limited,17844
Chorley Borough Council,http://statistics.data.gov.uk/id/local-authority/30UE,Central Support Services,1009,Customer & Digital,Licence Fees,60084,Customer & Client Receipts,5064,refund,14/06/2019,138675,378.50,Revenue,NAME REDACTED,78101
Chorley Borough Council,http://statistics.data.gov.uk/id/local-authority/30UE,Capital,Capital,Business Development & Growth,Main Contractor,3007,Capital Expenditure,Capital,Works to Chorley Cemtery Roads as per tender award,06/06/2019,137853,"19,650.41",Capital,John Wade Groundworks Ltd,76676
Chorley Borough Council,http://statistics.data.gov.uk/id/local-authority/30UE,Capital,Capital,Business Development & Growth,Main Contractor,3007,Capital Expenditure,Capital,Works to Chorley Cemtery Roads as per tender award,07/06/2019,138444,"47,297.70",Capital,John Wade Groundworks Ltd,76676
Chorley Borough Council,http://statistics.data.gov.uk/id/local-authority/30UE,Development Control,1091,Customer & Digital,Statutory Notices,40160,Miscellaneous Expenses,5034,Planning Public Notices to appear in the Chorley Guardian April 2019 to March 2020,14/06/2019,137377,367.08,Revenue,JPI Media - Johnston Publishing Ltd,20072
Chorley Borough Council,http://statistics.data.gov.uk/id/local-authority/30UE,Development Control,1091,Customer & Digital,Statutory Notices,40160,Miscellaneous Expenses,5034,Planning Public Notices to appear in the Chorley Guardian April 2019 to March 2020,14/06/2019,137965,393.30,Revenue,JPI Media - Johnston Publishing Ltd,20072
Chorley Borough Council,http://statistics.data.gov.uk/id/local-authority/30UE,Development Control,1091,Customer & Digital,Statutory Notices,40160,Miscellaneous Expenses,5034,Planning Public Notices to appear in the Chorley Guardian April 2019 to March 2020,14/06/2019,138458,367.08,Revenue,JPI Media - Johnston Publishing Ltd,20072
Chorley Borough Council,http://statistics.data.gov.uk/id/local-authority/30UE,Unapportionable Central OHeads,1009,Chief Executive,Corp Training Organisational Development,17006,Indirect Employee Expenses,5002,Managing Emotional Wellbeing Training in June,21/06/2019,138669,"1,790.00",Revenue,JW Training,64096
Chorley Borough Council,http://statistics.data.gov.uk/id/local-authority/30UE,Capital,Capital,Early Intervention,Grants,3002,Capital Expenditure,Capital,ADDRESS REDACTED,26/06/2019,138026,"3,677.50",Capital,K Berry Ltd,16421
Chorley Borough Council,http://statistics.data.gov.uk/id/local-authority/30UE,Capital,Capital,Early Intervention,Grants,3002,Capital Expenditure,Capital,,26/06/2019,138027,"3,340.00",Capital,K Berry Ltd,16421
Chorley Borough Council,http://statistics.data.gov.uk/id/local-authority/30UE,Capital,Capital,Early Intervention,Grants,3002,Capital Expenditure,Capital,variation order,26/06/2019,138313,490.00,Capital,K Berry Ltd,16421
Chorley Borough Council,http://statistics.data.gov.uk/id/local-authority/30UE,Homelessness,1075,Early Intervention,External Contractor,40198,Miscellaneous Expenses,5034,Q1 (April - June 2019) Provision of Young People`s Drop in,12/06/2019,138081,"3,750.00",Revenue,Key,61252
Chorley Borough Council,http://statistics.data.gov.uk/id/local-authority/30UE,Service Management & Support,1009,Customer & Digital,Protective Clothing,40040,"Clothing, Uniforms and Laundry",5025,"Hi-Vis Short Sleeve Polo - S477 Streetscene logo, embroidered on the front left breast. Medx10, Lrgx10, XLx10, XXLx5",06/06/2019,138436,279.30,Revenue,Key Engineering & Hygene Supplies,51615
Chorley Borough Council,http://statistics.data.gov.uk/id/local-authority/30UE,Service Management & Support,1009,Customer & Digital,Protective Clothing,40040,"Clothing, Uniforms and Laundry",5025,20 x Just One Source Red PVC knit wrist glove @ 0.58 each,06/06/2019,138436,11.60,Revenue,Key Engineering & Hygene Supplies,51615
Chorley Borough Council,http://statistics.data.gov.uk/id/local-authority/30UE,Business Support,1095,Business Development & Growth,Professional Fees,40063,Services,5027,Costa Coffee 5 year lease works,06/06/2019,138114,"3,262.50",Revenue,Knight Frank LLP,77571
Chorley Borough Council,http://statistics.data.gov.uk/id/local-authority/30UE,Unapportionable Central OHeads,1009,Policy & Governance,Consultants` Fees,40077,Services,5027,Marketing support for events,06/06/2019,138425,"2,000.00",Revenue,KR Public Relations Limited,78009
Chorley Borough Council,http://statistics.data.gov.uk/id/local-authority/30UE,Control Accounts,Control,Policy & Governance,General Balances,100,Balance Sheet,Balance,monthly ded from expenses,19/06/2019,138794,"1,631.54",Revenue,Labour Councillors Association,17577
Chorley Borough Council,http://statistics.data.gov.uk/id/local-authority/30UE,Precepts and Collection Fund,Precepts,Policy & Governance,LCC Precept,2009,Precepts & Collection Fund,Precept,LCC council tax precept,10/06/2019,138058,"5,044,970.00",Revenue,Lancashire County Council,18386
Chorley Borough Council,http://statistics.data.gov.uk/id/local-authority/30UE,Collection Fund Revenue Accoun,,Policy & Governance,NNDR County Share,2036,Precepts & Collection Fund,Precept,LCC business rates precrpt,10/06/2019,138058,"422,161.00",Revenue,Lancashire County Council,18386
Chorley Borough Council,http://statistics.data.gov.uk/id/local-authority/30UE,Unapportionable Central OHeads,1009,Policy & Governance,Exhibitions & Special Events,40158,Miscellaneous Expenses,5034,Road Closure order for Chorley 10k,06/06/2019,138110,890.36,Revenue,Lancashire County Council,20027
Chorley Borough Council,http://statistics.data.gov.uk/id/local-authority/30UE,Capital,Capital,Early Intervention,Grants,3002,Capital Expenditure,Capital,ADDRESS REDACTED,04/06/2019,138228,"3,835.06",Capital,Lancashire County Council,17758
Chorley Borough Council,http://statistics.data.gov.uk/id/local-authority/30UE,Capital,Capital,Policy & Governance,Grants,3002,Capital Expenditure,Capital,ADDRESS REDACTED,04/06/2019,138322,"4,523.04",Capital,Lancashire County Council,17758
Chorley Borough Council,http://statistics.data.gov.uk/id/local-authority/30UE,Capital,Capital,Early Intervention,Grants,3002,Capital Expenditure,Capital,ADDRESS REDACTED,12/06/2019,138540,"3,023.00",Capital,Lancashire County Council,17758
Chorley Borough Council,http://statistics.data.gov.uk/id/local-authority/30UE,Capital,Capital,Early Intervention,Grants,3002,Capital Expenditure,Capital,ADDRESS REDACTED,12/06/2019,138542,"7,077.00",Capital,Lancashire County Council,17758
Chorley Borough Council,http://statistics.data.gov.uk/id/local-authority/30UE,Other Short Term Creditors,,Policy & Governance,General Balances,100,Balance Sheet,Balance,EE`s contributions,10/06/2019,137573,"44,263.99",Revenue,Lancashire Pensions Services,16696
Chorley Borough Council,http://statistics.data.gov.uk/id/local-authority/30UE,Other Short Term Creditors,,Policy & Governance,General Balances,100,Balance Sheet,Balance,ER`s contributions,10/06/2019,137573,"97,526.73",Revenue,Lancashire Pensions Services,16696
Chorley Borough Council,http://statistics.data.gov.uk/id/local-authority/30UE,Unapportionable Central OHeads,1009,Policy & Governance,Pensions Deficit Recovery Contributions,12003,Direct Employee Expenses,5001,deficit,10/06/2019,137573,"80,525.00",Revenue,Lancashire Pensions Services,16696
Chorley Borough Council,http://statistics.data.gov.uk/id/local-authority/30UE,Other Short Term Creditors,,Policy & Governance,General Balances,100,Balance Sheet,Balance,EE`s Contributions,10/06/2019,138163,"45,130.16",Revenue,Lancashire Pensions Services,16696
Chorley Borough Council,http://statistics.data.gov.uk/id/local-authority/30UE,Other Short Term Creditors,,Policy & Governance,General Balances,100,Balance Sheet,Balance,ER`s Contributions,10/06/2019,138163,"99,703.95",Revenue,Lancashire Pensions Services,16696
Chorley Borough Council,http://statistics.data.gov.uk/id/local-authority/30UE,Unapportionable Central OHeads,1009,Policy & Governance,Pensions Deficit Recovery Contributions,12003,Direct Employee Expenses,5001,Deficit,10/06/2019,138163,"80,525.00",Revenue,Lancashire Pensions Services,16696
Chorley Borough Council,http://statistics.data.gov.uk/id/local-authority/30UE,Precepts and Collection Fund,Precepts,Policy & Governance,LCFA Precept,2011,Precepts & Collection Fund,Precept,LCFA council tax precept,10/06/2019,138059,"260,323.00",Revenue,Lancs Combined Fire Authority,17768
Chorley Borough Council,http://statistics.data.gov.uk/id/local-authority/30UE,Collection Fund Revenue Accoun,,Policy & Governance,NNDR Fire Share,2037,Precepts & Collection Fund,Precept,LCFA business rates precepts,10/06/2019,138059,"36,049.00",Revenue,Lancs Combined Fire Authority,17768
Chorley Borough Council,http://statistics.data.gov.uk/id/local-authority/30UE,Unapportionable Central OHeads,1009,Customer & Digital,Professional Fees,40063,Services,5027,Empty Homes Review 2019,14/06/2019,137010,"24,645.85",Revenue,Liberata (Capacity Grid),67989
Chorley Borough Council,http://statistics.data.gov.uk/id/local-authority/30UE,Unapportionable Central OHeads,1009,Customer & Digital,Professional Fees,40063,Services,5027,Empty Homes Review 2019,19/06/2019,138815,"7,933.33",Revenue,Liberata (Capacity Grid),67989
Chorley Borough Council,http://statistics.data.gov.uk/id/local-authority/30UE,Unapportionable Central OHeads,1009,Policy & Governance,Exhibitions & Special Events,40158,Miscellaneous Expenses,5034,Performance at Picnic in the Park,04/06/2019,138331,500.00,Revenue,Louby Lou Ltd,76335
Chorley Borough Council,http://statistics.data.gov.uk/id/local-authority/30UE,Democratic Represent and  Mgnt,1007,Customer & Digital,Playground Equipment,40008,"Equipment, Furniture & Materia",5023,"LABOUR 60m2 sand filled carpet (Blue) to cover all existing wetpour rubber, ramp to lower section Supply/install sand crane",14/06/2019,138174,"1,350.00",Revenue,Ludus Leisure Limited,71508
Chorley Borough Council,http://statistics.data.gov.uk/id/local-authority/30UE,Democratic Represent and  Mgnt,1007,Customer & Digital,Playground Equipment,40008,"Equipment, Furniture & Materia",5023,Materials,14/06/2019,138174,"4,535.00",Revenue,Ludus Leisure Limited,71508
Chorley Borough Council,http://statistics.data.gov.uk/id/local-authority/30UE,Homelessness,1075,Early Intervention,Stationery,40050,"Printing, Stationery & General",5026,Casio Desk Calculator 11.322.894,12/06/2019,138526,21.96,Revenue,Lyreco UK Ltd,17623
Chorley Borough Council,http://statistics.data.gov.uk/id/local-authority/30UE,Homelessness,1075,Early Intervention,Stationery,40050,"Printing, Stationery & General",5026,Lyreco compatible cartridge (Brother toner) - black - 7746184,12/06/2019,138526,82.60,Revenue,Lyreco UK Ltd,17623
Chorley Borough Council,http://statistics.data.gov.uk/id/local-authority/30UE,Homelessness,1075,Early Intervention,Stationery,40050,"Printing, Stationery & General",5026,Lyreco compatible cartridge (brother toner)  - Cyan - 10066959,12/06/2019,138526,39.99,Revenue,Lyreco UK Ltd,17623
Chorley Borough Council,http://statistics.data.gov.uk/id/local-authority/30UE,Homelessness,1075,Early Intervention,Stationery,40050,"Printing, Stationery & General",5026,Lyreco compatible cartridge (Brother toner) - magenta - 10066961,12/06/2019,138526,39.94,Revenue,Lyreco UK Ltd,17623
Chorley Borough Council,http://statistics.data.gov.uk/id/local-authority/30UE,Homelessness,1075,Early Intervention,Stationery,40050,"Printing, Stationery & General",5026,Lyreco compatible cartridge (Bother toner) - yellow - 10066972,12/06/2019,138526,39.96,Revenue,Lyreco UK Ltd,17623
Chorley Borough Council,http://statistics.data.gov.uk/id/local-authority/30UE,Homelessness,1075,Early Intervention,Stationery,40050,"Printing, Stationery & General",5026,Brother drum DR241CL drum - 6321.839,12/06/2019,138526,92.21,Revenue,Lyreco UK Ltd,17623
Chorley Borough Council,http://statistics.data.gov.uk/id/local-authority/30UE,Homelessness,1075,Early Intervention,Stationery,40050,"Printing, Stationery & General",5026,Dymo label tapes black/yellow - 185246,12/06/2019,138526,30.50,Revenue,Lyreco UK Ltd,17623
Chorley Borough Council,http://statistics.data.gov.uk/id/local-authority/30UE,Homelessness,1075,Early Intervention,Stationery,40050,"Printing, Stationery & General",5026,Visitor book refill - 709442,12/06/2019,138526,9.82,Revenue,Lyreco UK Ltd,17623
Chorley Borough Council,http://statistics.data.gov.uk/id/local-authority/30UE,Homelessness,1075,Early Intervention,Stationery,40050,"Printing, Stationery & General",5026,Telephone message pads -708299,12/06/2019,138526,11.30,Revenue,Lyreco UK Ltd,17623
Chorley Borough Council,http://statistics.data.gov.uk/id/local-authority/30UE,Unapportionable Central OHeads,1009,Chief Executive,Stationery,40050,"Printing, Stationery & General",5026,LYRECO WHITE C5 SELF SEAL WINDOW ENVELOPES 90GSM - BOX OF 500,12/06/2019,138527,25.86,Revenue,Lyreco UK Ltd,17623
Chorley Borough Council,http://statistics.data.gov.uk/id/local-authority/30UE,Unapportionable Central OHeads,1009,Chief Executive,Stationery,40050,"Printing, Stationery & General",5026,LEXMARK 50F2000 LAS CART BLK,12/06/2019,138527,143.12,Revenue,Lyreco UK Ltd,17623
Chorley Borough Council,http://statistics.data.gov.uk/id/local-authority/30UE,Unapportionable Central OHeads,1009,Chief Executive,Stationery,40050,"Printing, Stationery & General",5026,"3.110.545 LYRECO HARD BACK TWIN WIRE NOTEBK A4 	 - PACK OF 5",12/06/2019,138527,3.95,Revenue,Lyreco UK Ltd,17623
Chorley Borough Council,http://statistics.data.gov.uk/id/local-authority/30UE,Unapportionable Central OHeads,1009,Chief Executive,Stationery,40050,"Printing, Stationery & General",5026,LYRECO RETRACTABLE GEL INK BLACK PENS 0.5MM LINE WIDTH - BOX OF 12,12/06/2019,138527,5.28,Revenue,Lyreco UK Ltd,17623
Chorley Borough Council,http://statistics.data.gov.uk/id/local-authority/30UE,Unapportionable Central OHeads,1009,Chief Executive,Stationery,40050,"Printing, Stationery & General",5026,Lyreco White Storage Boxes 250 X 327 X 415Mm - Box Of 10,12/06/2019,138527,17.47,Revenue,Lyreco UK Ltd,17623
Chorley Borough Council,http://statistics.data.gov.uk/id/local-authority/30UE,Unapportionable Central OHeads,1009,Chief Executive,Stationery,40050,"Printing, Stationery & General",5026,Elba Spring Pocket Files - Green,12/06/2019,138527,14.35,Revenue,Lyreco UK Ltd,17623
Chorley Borough Council,http://statistics.data.gov.uk/id/local-authority/30UE,Unapportionable Central OHeads,1009,Chief Executive,Stationery,40050,"Printing, Stationery & General",5026,box 25 DVD printable,12/06/2019,138527,102.96,Revenue,Lyreco UK Ltd,17623
Chorley Borough Council,http://statistics.data.gov.uk/id/local-authority/30UE,Unapportionable Central OHeads,1009,Chief Executive,Stationery,40050,"Printing, Stationery & General",5026,2.182.763 PK25 FELLOWES  CD SLIM CASES BLACK,12/06/2019,138527,10.80,Revenue,Lyreco UK Ltd,17623
Chorley Borough Council,http://statistics.data.gov.uk/id/local-authority/30UE,Unapportionable Central OHeads,1009,Chief Executive,Stationery,40050,"Printing, Stationery & General",5026,PK500 BONG ENV C5 90G S/S WH,12/06/2019,138527,3.84,Revenue,Lyreco UK Ltd,17623
Chorley Borough Council,http://statistics.data.gov.uk/id/local-authority/30UE,Unapportionable Central OHeads,1009,Chief Executive,Stationery,40050,"Printing, Stationery & General",5026,ADHESIVE LABELS 50MM DIA - COMPANY SEAL - RED - PACK OF 8,12/06/2019,138527,1.68,Revenue,Lyreco UK Ltd,17623
Chorley Borough Council,http://statistics.data.gov.uk/id/local-authority/30UE,Business Support,1095,Early Intervention,Stationery,40050,"Printing, Stationery & General",5026,Dairy ( academic year) Black A4,21/06/2019,138528,0.61,Revenue,Lyreco UK Ltd,17623
Chorley Borough Council,http://statistics.data.gov.uk/id/local-authority/30UE,Business Support,1095,Early Intervention,Stationery,40050,"Printing, Stationery & General",5026,MICRON ballpoint black stick pens 0.7mm,21/06/2019,138528,3.00,Revenue,Lyreco UK Ltd,17623
Chorley Borough Council,http://statistics.data.gov.uk/id/local-authority/30UE,Business Support,1095,Early Intervention,Stationery,40050,"Printing, Stationery & General",5026,Scissors,21/06/2019,138528,0.72,Revenue,Lyreco UK Ltd,17623
Chorley Borough Council,http://statistics.data.gov.uk/id/local-authority/30UE,Business Support,1095,Early Intervention,Stationery,40050,"Printing, Stationery & General",5026, 1 x box assorted permanent markers,21/06/2019,138528,3.60,Revenue,Lyreco UK Ltd,17623
Chorley Borough Council,http://statistics.data.gov.uk/id/local-authority/30UE,Business Support,1095,Early Intervention,Stationery,40050,"Printing, Stationery & General",5026,Lyreco Yellow sticky notes pkt  of 12 125 -7,21/06/2019,138528,2.16,Revenue,Lyreco UK Ltd,17623
Chorley Borough Council,http://statistics.data.gov.uk/id/local-authority/30UE,Business Support,1095,Early Intervention,Stationery,40050,"Printing, Stationery & General",5026,LYRECO correction tape rollers 4.2mm,21/06/2019,138528,6.90,Revenue,Lyreco UK Ltd,17623
Chorley Borough Council,http://statistics.data.gov.uk/id/local-authority/30UE,Business Support,1095,Early Intervention,Stationery,40050,"Printing, Stationery & General",5026,LYRECO assorted colour budget highlighters - pack of 6,21/06/2019,138528,3.64,Revenue,Lyreco UK Ltd,17623
Chorley Borough Council,http://statistics.data.gov.uk/id/local-authority/30UE,Business Support,1095,Early Intervention,Stationery,40050,"Printing, Stationery & General",5026,SHATTERPROOF RULER 30CM / 12 INCHES CLEAR,21/06/2019,138528,0.30,Revenue,Lyreco UK Ltd,17623
Chorley Borough Council,http://statistics.data.gov.uk/id/local-authority/30UE,Business Support,1095,Early Intervention,Stationery,40050,"Printing, Stationery & General",5026,Telephone message pads - pack of 10,21/06/2019,138528,22.60,Revenue,Lyreco UK Ltd,17623
Chorley Borough Council,http://statistics.data.gov.uk/id/local-authority/30UE,Business Support,1095,Early Intervention,Stationery,40050,"Printing, Stationery & General",5026,Guildhall Visitor Book,21/06/2019,138528,34.67,Revenue,Lyreco UK Ltd,17623
Chorley Borough Council,http://statistics.data.gov.uk/id/local-authority/30UE,Business Support,1095,Early Intervention,Stationery,40050,"Printing, Stationery & General",5026,Visitor Book Re-fill,21/06/2019,138528,39.28,Revenue,Lyreco UK Ltd,17623
Chorley Borough Council,http://statistics.data.gov.uk/id/local-authority/30UE,Business Support,1095,Early Intervention,Stationery,40050,"Printing, Stationery & General",5026,LYRECO Phone Cleaning Wipes Sachets - Pack Of 50,21/06/2019,138528,14.37,Revenue,Lyreco UK Ltd,17623
Chorley Borough Council,http://statistics.data.gov.uk/id/local-authority/30UE,Business Support,1095,Early Intervention,Stationery,40050,"Printing, Stationery & General",5026,Lyreco Black No.26/6 Plastic Full Strip Stapler - 20 Sheet Capacity,21/06/2019,138528,2.80,Revenue,Lyreco UK Ltd,17623
Chorley Borough Council,http://statistics.data.gov.uk/id/local-authority/30UE,Business Support,1095,Early Intervention,Stationery,40050,"Printing, Stationery & General",5026,BX 5000 Lyreco Staples 26/6,21/06/2019,138528,0.92,Revenue,Lyreco UK Ltd,17623
Chorley Borough Council,http://statistics.data.gov.uk/id/local-authority/30UE,Business Support,1095,Early Intervention,Stationery,40050,"Printing, Stationery & General",5026,LYRECO HB ERASER TIPPED PENCILS - BOX OF 12,21/06/2019,138528,0.29,Revenue,Lyreco UK Ltd,17623
Chorley Borough Council,http://statistics.data.gov.uk/id/local-authority/30UE,Business Support,1095,Early Intervention,Stationery,40050,"Printing, Stationery & General",5026,Calculator,21/06/2019,138528,21.96,Revenue,Lyreco UK Ltd,17623
Chorley Borough Council,http://statistics.data.gov.uk/id/local-authority/30UE,Business Support,1095,Early Intervention,Stationery,40050,"Printing, Stationery & General",5026,Black 203 x 127mm Card Index Box,21/06/2019,138528,12.92,Revenue,Lyreco UK Ltd,17623
Chorley Borough Council,http://statistics.data.gov.uk/id/local-authority/30UE,Business Support,1095,Early Intervention,Stationery,40050,"Printing, Stationery & General",5026,Foolscap clipboard - black,21/06/2019,138528,2.64,Revenue,Lyreco UK Ltd,17623
Chorley Borough Council,http://statistics.data.gov.uk/id/local-authority/30UE,Business Support,1095,Early Intervention,Stationery,40050,"Printing, Stationery & General",5026,LYRECO HEAVY DUTY 2HOLE PAP PUNCH BLK,21/06/2019,138528,16.41,Revenue,Lyreco UK Ltd,17623
Chorley Borough Council,http://statistics.data.gov.uk/id/local-authority/30UE,Business Support,1095,Early Intervention,Stationery,40050,"Printing, Stationery & General",5026,Silvine Record cards,21/06/2019,138528,9.45,Revenue,Lyreco UK Ltd,17623
Chorley Borough Council,http://statistics.data.gov.uk/id/local-authority/30UE,Business Support,1095,Early Intervention,Stationery,40050,"Printing, Stationery & General",5026,LYRECO white 8x5 Inch Shorthand Notebook (PACK OF 6),21/06/2019,138528,10.20,Revenue,Lyreco UK Ltd,17623
Chorley Borough Council,http://statistics.data.gov.uk/id/local-authority/30UE,Business Support,1095,Early Intervention,Stationery,40050,"Printing, Stationery & General",5026,3.335.815 LYRECO LETTER TRAY BLACK,21/06/2019,138528,15.64,Revenue,Lyreco UK Ltd,17623
Chorley Borough Council,http://statistics.data.gov.uk/id/local-authority/30UE,Business Support,1095,Early Intervention,Stationery,40050,"Printing, Stationery & General",5026,1 x desktop organiser black,21/06/2019,138528,20.45,Revenue,Lyreco UK Ltd,17623
Chorley Borough Council,http://statistics.data.gov.uk/id/local-authority/30UE,Business Support,1095,Early Intervention,Stationery,40050,"Printing, Stationery & General",5026,BX2100 LYRECO M/PURPOSE LABEL 63.5X38.1,21/06/2019,138528,2.07,Revenue,Lyreco UK Ltd,17623
Chorley Borough Council,http://statistics.data.gov.uk/id/local-authority/30UE,Business Support,1095,Early Intervention,Stationery,40050,"Printing, Stationery & General",5026,Pilot V-Sign Fibre Tip Black Pens 0.6mm line Width - Box of 12,21/06/2019,138528,20.04,Revenue,Lyreco UK Ltd,17623
Chorley Borough Council,http://statistics.data.gov.uk/id/local-authority/30UE,Business Support,1095,Early Intervention,Stationery,40050,"Printing, Stationery & General",5026,`Things to do Today` book,21/06/2019,138528,9.30,Revenue,Lyreco UK Ltd,17623
Chorley Borough Council,http://statistics.data.gov.uk/id/local-authority/30UE,Business Support,1095,Early Intervention,Stationery,40050,"Printing, Stationery & General",5026,BX1000 LYRECO PAP CLIP ROUND GALV 32MM,21/06/2019,138528,1.32,Revenue,Lyreco UK Ltd,17623
Chorley Borough Council,http://statistics.data.gov.uk/id/local-authority/30UE,Business Support,1095,Early Intervention,Stationery,40050,"Printing, Stationery & General",5026,Lyreco Assorted Colour Highlighters - Wallet Of 6,21/06/2019,138528,2.73,Revenue,Lyreco UK Ltd,17623
Chorley Borough Council,http://statistics.data.gov.uk/id/local-authority/30UE,Business Support,1095,Early Intervention,Stationery,40050,"Printing, Stationery & General",5026,Pencil Sharpeners,21/06/2019,138528,3.68,Revenue,Lyreco UK Ltd,17623
Chorley Borough Council,http://statistics.data.gov.uk/id/local-authority/30UE,Business Support,1095,Early Intervention,Stationery,40050,"Printing, Stationery & General",5026,Duplicate book (small),21/06/2019,138528,22.50,Revenue,Lyreco UK Ltd,17623
Chorley Borough Council,http://statistics.data.gov.uk/id/local-authority/30UE,Business Support,1095,Early Intervention,Stationery,40050,"Printing, Stationery & General",5026,Black reception pen and  4 x refills,21/06/2019,138528,16.80,Revenue,Lyreco UK Ltd,17623
Chorley Borough Council,http://statistics.data.gov.uk/id/local-authority/30UE,Business Support,1095,Early Intervention,Stationery,40050,"Printing, Stationery & General",5026,A4 Laminator,21/06/2019,138528,63.07,Revenue,Lyreco UK Ltd,17623
Chorley Borough Council,http://statistics.data.gov.uk/id/local-authority/30UE,Business Support,1095,Early Intervention,Stationery,40050,"Printing, Stationery & General",5026,BX100 LYRECO LAM POUCH 2X125MI A4 GLOSS,21/06/2019,138528,7.96,Revenue,Lyreco UK Ltd,17623
Chorley Borough Council,http://statistics.data.gov.uk/id/local-authority/30UE,Business Support,1095,Early Intervention,Stationery,40050,"Printing, Stationery & General",5026,Lyreco Heavy Duty Sticky Tape Dispenser For 19Mm X 33/66M Tapes (Not Included),21/06/2019,138528,3.74,Revenue,Lyreco UK Ltd,17623
Chorley Borough Council,http://statistics.data.gov.uk/id/local-authority/30UE,Business Support,1095,Early Intervention,Stationery,40050,"Printing, Stationery & General",5026,LYRECO BUDGET CLEAR TAPE 25MMX66M - PK 6,21/06/2019,138528,0.96,Revenue,Lyreco UK Ltd,17623
Chorley Borough Council,http://statistics.data.gov.uk/id/local-authority/30UE,Business Support,1095,Early Intervention,Stationery,40050,"Printing, Stationery & General",5026,Lyreco  Staple Remover Black,21/06/2019,138528,0.24,Revenue,Lyreco UK Ltd,17623
Chorley Borough Council,http://statistics.data.gov.uk/id/local-authority/30UE,Business Support,1095,Early Intervention,Stationery,40050,"Printing, Stationery & General",5026,Trodat standard dial a phrase stamp with date.,21/06/2019,138528,7.71,Revenue,Lyreco UK Ltd,17623
Chorley Borough Council,http://statistics.data.gov.uk/id/local-authority/30UE,Business Support,1095,Early Intervention,Stationery,40050,"Printing, Stationery & General",5026,Stamp Pad Ink (Black),21/06/2019,138528,6.52,Revenue,Lyreco UK Ltd,17623
Chorley Borough Council,http://statistics.data.gov.uk/id/local-authority/30UE,Business Support,1095,Early Intervention,Stationery,40050,"Printing, Stationery & General",5026,wirebound notebooks (ruled and perforated),21/06/2019,138528,5.52,Revenue,Lyreco UK Ltd,17623
Chorley Borough Council,http://statistics.data.gov.uk/id/local-authority/30UE,Business Support,1095,Early Intervention,Stationery,40050,"Printing, Stationery & General",5026,Drawing pins *750(brass),21/06/2019,138528,5.17,Revenue,Lyreco UK Ltd,17623
Chorley Borough Council,http://statistics.data.gov.uk/id/local-authority/30UE,Business Support,1095,Early Intervention,Stationery,40050,"Printing, Stationery & General",5026,Plastic Key Hangers - Assorted,21/06/2019,138528,3.36,Revenue,Lyreco UK Ltd,17623
Chorley Borough Council,http://statistics.data.gov.uk/id/local-authority/30UE,Business Support,1095,Early Intervention,Tools & Equipment - Purchase,40003,"Equipment, Furniture & Materia",5023,Fellowes Powershred 225Ci,21/06/2019,138528,647.70,Revenue,Lyreco UK Ltd,17623
Chorley Borough Council,http://statistics.data.gov.uk/id/local-authority/30UE,Unapportionable Central OHeads,1009,Chief Executive,Stationery,40050,"Printing, Stationery & General",5026,Orange C4 Intertac Seal Internal Mail Envelopes 85Gsm - Box Of 250,19/06/2019,138534,27.51,Revenue,Lyreco UK Ltd,17623
Chorley Borough Council,http://statistics.data.gov.uk/id/local-authority/30UE,Unapportionable Central OHeads,1009,Chief Executive,Stationery,40050,"Printing, Stationery & General",5026,Lyreco Metal Half-Strip Stapler,19/06/2019,138534,9.06,Revenue,Lyreco UK Ltd,17623
Chorley Borough Council,http://statistics.data.gov.uk/id/local-authority/30UE,Unapportionable Central OHeads,1009,Chief Executive,Stationery,40050,"Printing, Stationery & General",5026,BX 5000 Lyreco Staples 26/6,19/06/2019,138534,0.46,Revenue,Lyreco UK Ltd,17623
Chorley Borough Council,http://statistics.data.gov.uk/id/local-authority/30UE,Unapportionable Central OHeads,1009,Chief Executive,Stationery,40050,"Printing, Stationery & General",5026,"5C5 WINDOW ENVELOPES (WHITE, SELF SEAL)",19/06/2019,138534,25.86,Revenue,Lyreco UK Ltd,17623
Chorley Borough Council,http://statistics.data.gov.uk/id/local-authority/30UE,Unapportionable Central OHeads,1009,Chief Executive,Stationery,40050,"Printing, Stationery & General",5026,HP Black Ink Cartridge 953,19/06/2019,138534,48.52,Revenue,Lyreco UK Ltd,17623
Chorley Borough Council,http://statistics.data.gov.uk/id/local-authority/30UE,Unapportionable Central OHeads,1009,Chief Executive,Stationery,40050,"Printing, Stationery & General",5026,HP Blue Ink Cartridge 953,19/06/2019,138534,17.77,Revenue,Lyreco UK Ltd,17623
Chorley Borough Council,http://statistics.data.gov.uk/id/local-authority/30UE,Unapportionable Central OHeads,1009,Chief Executive,Stationery,40050,"Printing, Stationery & General",5026,HP Yellow Ink Cartridge 953,19/06/2019,138534,17.77,Revenue,Lyreco UK Ltd,17623
Chorley Borough Council,http://statistics.data.gov.uk/id/local-authority/30UE,Unapportionable Central OHeads,1009,Chief Executive,Stationery,40050,"Printing, Stationery & General",5026,HP Magenta Ink Cartridge 953,19/06/2019,138534,17.77,Revenue,Lyreco UK Ltd,17623
Chorley Borough Council,http://statistics.data.gov.uk/id/local-authority/30UE,Unapportionable Central OHeads,1009,Chief Executive,Stationery,40050,"Printing, Stationery & General",5026,Desktop Display A4 three pockets,19/06/2019,138534,17.94,Revenue,Lyreco UK Ltd,17623
Chorley Borough Council,http://statistics.data.gov.uk/id/local-authority/30UE,Unapportionable Central OHeads,1009,Chief Executive,Stationery,40050,"Printing, Stationery & General",5026,Display racks 1/3 A4 W/3 COMP,19/06/2019,138534,9.85,Revenue,Lyreco UK Ltd,17623
Chorley Borough Council,http://statistics.data.gov.uk/id/local-authority/30UE,Unapportionable Central OHeads,1009,Chief Executive,Stationery,40050,"Printing, Stationery & General",5026,LYRECO WHITEBOARD CLEANING FLUID - 250ML BOTTLE,19/06/2019,138534,1.95,Revenue,Lyreco UK Ltd,17623
Chorley Borough Council,http://statistics.data.gov.uk/id/local-authority/30UE,Unapportionable Central OHeads,1009,Chief Executive,Stationery,40050,"Printing, Stationery & General",5026,BX200 PUSH PINS 10MM ASSTD COL,19/06/2019,138534,3.18,Revenue,Lyreco UK Ltd,17623
Chorley Borough Council,http://statistics.data.gov.uk/id/local-authority/30UE,Unapportionable Central OHeads,1009,Chief Executive,Stationery,40050,"Printing, Stationery & General",5026,LYRECO WHITE C5 SELF SEAL WINDOW ENVELOPES 90GSM - BOX OF 500,19/06/2019,138534,4.31,Revenue,Lyreco UK Ltd,17623
Chorley Borough Council,http://statistics.data.gov.uk/id/local-authority/30UE,Unapportionable Central OHeads,1009,Chief Executive,Stationery,40050,"Printing, Stationery & General",5026,PK500 BONG ENV C5 90G S/S WH,19/06/2019,138534,3.84,Revenue,Lyreco UK Ltd,17623
Chorley Borough Council,http://statistics.data.gov.uk/id/local-authority/30UE,Unapportionable Central OHeads,1009,Chief Executive,Stationery,40050,"Printing, Stationery & General",5026,Recycled Flipchart Pad - pack of 5,19/06/2019,138534,70.12,Revenue,Lyreco UK Ltd,17623
Chorley Borough Council,http://statistics.data.gov.uk/id/local-authority/30UE,Unapportionable Central OHeads,1009,Chief Executive,Stationery,40050,"Printing, Stationery & General",5026,Orange C5 Internal Mail Envelopes - 85gsm box of 500,19/06/2019,138534,56.12,Revenue,Lyreco UK Ltd,17623
Chorley Borough Council,http://statistics.data.gov.uk/id/local-authority/30UE,Capital,Capital,Early Intervention,Grants,3002,Capital Expenditure,Capital,,26/06/2019,138859,"4,170.00",Capital,M.J Park Building Contractors,20367
Chorley Borough Council,http://statistics.data.gov.uk/id/local-authority/30UE,Elections,1012,Policy & Governance,Printing,40043,"Printing, Stationery & General",5026,Braille and large print ballot papers for European Elections,14/06/2019,138506,285.00,Revenue,MANCHESTER CITY COUNCIL,18212
Chorley Borough Council,http://statistics.data.gov.uk/id/local-authority/30UE,Unapportionable Central OHeads,1009,Policy & Governance,Mayors Medals,40029,"Equipment, Furniture & Materia",5023,Photography and mounted prints for mayoral portraits.,27/06/2019,138703,405.00,Revenue,Martin Birchall Photography,22503
Chorley Borough Council,http://statistics.data.gov.uk/id/local-authority/30UE,Unapportionable Central OHeads,1009,Policy & Governance,Agency Staff,13000,Direct Employee Expenses,5001,NAME REDACTED,19/06/2019,138231,253.47,Revenue,Matrix SCM Ltd,22128
Chorley Borough Council,http://statistics.data.gov.uk/id/local-authority/30UE,Unapportionable Central OHeads,1009,Policy & Governance,Agency Staff,13000,Direct Employee Expenses,5001,NAME REDACTED,19/06/2019,138231,734.76,Revenue,Matrix SCM Ltd,22128
Chorley Borough Council,http://statistics.data.gov.uk/id/local-authority/30UE,Unapportionable Central OHeads,1009,Policy & Governance,Agency Staff,13000,Direct Employee Expenses,5001,NAME REDACTED,19/06/2019,138456,734.76,Revenue,Matrix SCM Ltd,22128
Chorley Borough Council,http://statistics.data.gov.uk/id/local-authority/30UE,Democratic Represent and  Mgnt,1007,Customer & Digital,Maintenance/Nature Reserves,20045,Grounds Maintenance Costs,5013,20 tonne of MOT delivered to Yarrow valley way ( same place ),14/06/2019,137970,327.03,Revenue,Mc & Ma Stewart (Haulage Ltd),16627
Chorley Borough Council,http://statistics.data.gov.uk/id/local-authority/30UE,Unapportionable Central OHeads,1009,Policy & Governance,Agency Staff,13000,Direct Employee Expenses,5001,Recruitment to temporary Management Accountant Post - initial 3 month period,12/06/2019,138335,765.02,Revenue,Michael Page International Limted,78006
Chorley Borough Council,http://statistics.data.gov.uk/id/local-authority/30UE,Unapportionable Central OHeads,1009,Policy & Governance,Agency Staff,13000,Direct Employee Expenses,5001,Recruitment to temporary Management Accountant Post - initial 3 month period,12/06/2019,138551,942.05,Revenue,Michael Page International Limted,78006
Chorley Borough Council,http://statistics.data.gov.uk/id/local-authority/30UE,Service Management & Support,1009,Customer & Digital,Supplies-Grounds Maintenance,40025,"Equipment, Furniture & Materia",5023,"Supply & deliver lamp post baskets, hanging baskets & troughs for various sites within Chorley Borough",14/06/2019,138565,"8,102.58",Revenue,Midstream (West Lancs) Ltd,20873
Chorley Borough Council,http://statistics.data.gov.uk/id/local-authority/30UE,Capital,Capital,Early Intervention,Grants,3002,Capital Expenditure,Capital,ADDRESS REDACTED,04/06/2019,138191,"4,691.34",Capital,Mint Northwest Ltd,65607
Chorley Borough Council,http://statistics.data.gov.uk/id/local-authority/30UE,Capital,Capital,Early Intervention,Grants,3002,Capital Expenditure,Capital,ADDRESS REDACTED,04/06/2019,138318,"6,973.02",Capital,Mint Northwest Ltd,65607
Chorley Borough Council,http://statistics.data.gov.uk/id/local-authority/30UE,Capital,Capital,Early Intervention,Grants,3002,Capital Expenditure,Capital,ADDRESS REDACTED,04/06/2019,138323,"3,439.09",Capital,Mint Northwest Ltd,65607
Chorley Borough Council,http://statistics.data.gov.uk/id/local-authority/30UE,Capital,Capital,Early Intervention,Grants,3002,Capital Expenditure,Capital,dfg ADDRESS REDACTED,26/06/2019,138869,"3,198.74",Capital,Mint Northwest Ltd,65607
Chorley Borough Council,http://statistics.data.gov.uk/id/local-authority/30UE,Capital,Capital,Early Intervention,Grants,3002,Capital Expenditure,Capital,Grant,26/06/2019,138945,"4,089.17",Capital,Mint Northwest Ltd,65607
Chorley Borough Council,http://statistics.data.gov.uk/id/local-authority/30UE,Service Management & Support,1009,Customer & Digital,Grounds Maintenance Contractor,20043,Grounds Maintenance Costs,5013,"Work completed, cleaning the Astley Park Cenotaph",26/06/2019,138728,535.00,Revenue,MJR Masonry Services,56017
Chorley Borough Council,http://statistics.data.gov.uk/id/local-authority/30UE,Private Sector HSG Renewal,1073,Early Intervention,External Contractor,40198,Miscellaneous Expenses,5034,Ref 1987,26/06/2019,138736,66.00,Revenue,Mobility Care Services,70841
Chorley Borough Council,http://statistics.data.gov.uk/id/local-authority/30UE,Private Sector HSG Renewal,1073,Early Intervention,External Contractor,40198,Miscellaneous Expenses,5034,Ref 1988,26/06/2019,138736,132.00,Revenue,Mobility Care Services,70841
Chorley Borough Council,http://statistics.data.gov.uk/id/local-authority/30UE,Private Sector HSG Renewal,1073,Early Intervention,External Contractor,40198,Miscellaneous Expenses,5034,Ref 1989,26/06/2019,138736,66.00,Revenue,Mobility Care Services,70841
Chorley Borough Council,http://statistics.data.gov.uk/id/local-authority/30UE,Private Sector HSG Renewal,1073,Early Intervention,External Contractor,40198,Miscellaneous Expenses,5034,Ref 1990,26/06/2019,138736,256.00,Revenue,Mobility Care Services,70841
Chorley Borough Council,http://statistics.data.gov.uk/id/local-authority/30UE,Private Sector HSG Renewal,1073,Early Intervention,External Contractor,40198,Miscellaneous Expenses,5034,Ref 2009,26/06/2019,138736,66.00,Revenue,Mobility Care Services,70841
Chorley Borough Council,http://statistics.data.gov.uk/id/local-authority/30UE,Private Sector HSG Renewal,1073,Early Intervention,External Contractor,40198,Miscellaneous Expenses,5034,Ref 2017,26/06/2019,138736,132.00,Revenue,Mobility Care Services,70841
Chorley Borough Council,http://statistics.data.gov.uk/id/local-authority/30UE,Private Sector HSG Renewal,1073,Early Intervention,External Contractor,40198,Miscellaneous Expenses,5034,Ref 2021,26/06/2019,138736,128.00,Revenue,Mobility Care Services,70841
Chorley Borough Council,http://statistics.data.gov.uk/id/local-authority/30UE,Private Sector HSG Renewal,1073,Early Intervention,External Contractor,40198,Miscellaneous Expenses,5034,Ref 2022,26/06/2019,138736,140.00,Revenue,Mobility Care Services,70841
Chorley Borough Council,http://statistics.data.gov.uk/id/local-authority/30UE,Private Sector HSG Renewal,1073,Early Intervention,External Contractor,40198,Miscellaneous Expenses,5034,Ref 2023,26/06/2019,138736,140.00,Revenue,Mobility Care Services,70841
Chorley Borough Council,http://statistics.data.gov.uk/id/local-authority/30UE,Private Sector HSG Renewal,1073,Early Intervention,External Contractor,40198,Miscellaneous Expenses,5034,Ref 2024,26/06/2019,138736,66.00,Revenue,Mobility Care Services,70841
Chorley Borough Council,http://statistics.data.gov.uk/id/local-authority/30UE,Private Sector HSG Renewal,1073,Early Intervention,External Contractor,40198,Miscellaneous Expenses,5034,Ref 2036,26/06/2019,138736,111.00,Revenue,Mobility Care Services,70841
Chorley Borough Council,http://statistics.data.gov.uk/id/local-authority/30UE,Private Sector HSG Renewal,1073,Early Intervention,External Contractor,40198,Miscellaneous Expenses,5034,Ref 2037,26/06/2019,138736,222.00,Revenue,Mobility Care Services,70841
Chorley Borough Council,http://statistics.data.gov.uk/id/local-authority/30UE,Private Sector HSG Renewal,1073,Early Intervention,External Contractor,40198,Miscellaneous Expenses,5034,Ref 2035,26/06/2019,138736,111.00,Revenue,Mobility Care Services,70841
Chorley Borough Council,http://statistics.data.gov.uk/id/local-authority/30UE,Private Sector HSG Renewal,1073,Early Intervention,External Contractor,40198,Miscellaneous Expenses,5034,Ref 2038,26/06/2019,138736,66.00,Revenue,Mobility Care Services,70841
Chorley Borough Council,http://statistics.data.gov.uk/id/local-authority/30UE,Private Sector HSG Renewal,1073,Early Intervention,External Contractor,40198,Miscellaneous Expenses,5034,Ref 2039,26/06/2019,138736,198.00,Revenue,Mobility Care Services,70841
Chorley Borough Council,http://statistics.data.gov.uk/id/local-authority/30UE,Private Sector HSG Renewal,1073,Early Intervention,External Contractor,40198,Miscellaneous Expenses,5034,Ref 2057,26/06/2019,138736,111.00,Revenue,Mobility Care Services,70841
Chorley Borough Council,http://statistics.data.gov.uk/id/local-authority/30UE,Private Sector HSG Renewal,1073,Early Intervention,External Contractor,40198,Miscellaneous Expenses,5034,Ref 2058,26/06/2019,138736,111.00,Revenue,Mobility Care Services,70841
Chorley Borough Council,http://statistics.data.gov.uk/id/local-authority/30UE,Private Sector HSG Renewal,1073,Early Intervention,External Contractor,40198,Miscellaneous Expenses,5034,Ref 2059,26/06/2019,138736,111.00,Revenue,Mobility Care Services,70841
Chorley Borough Council,http://statistics.data.gov.uk/id/local-authority/30UE,Private Sector HSG Renewal,1073,Early Intervention,External Contractor,40198,Miscellaneous Expenses,5034,Ref 2060,26/06/2019,138736,128.00,Revenue,Mobility Care Services,70841
Chorley Borough Council,http://statistics.data.gov.uk/id/local-authority/30UE,Private Sector HSG Renewal,1073,Early Intervention,External Contractor,40198,Miscellaneous Expenses,5034,Ref 2061,26/06/2019,138736,66.00,Revenue,Mobility Care Services,70841
Chorley Borough Council,http://statistics.data.gov.uk/id/local-authority/30UE,Private Sector HSG Renewal,1073,Early Intervention,External Contractor,40198,Miscellaneous Expenses,5034,Ref 2062,26/06/2019,138736,66.00,Revenue,Mobility Care Services,70841
Chorley Borough Council,http://statistics.data.gov.uk/id/local-authority/30UE,Private Sector HSG Renewal,1073,Early Intervention,External Contractor,40198,Miscellaneous Expenses,5034,Ref 2063,26/06/2019,138736,256.00,Revenue,Mobility Care Services,70841
Chorley Borough Council,http://statistics.data.gov.uk/id/local-authority/30UE,Private Sector HSG Renewal,1073,Early Intervention,External Contractor,40198,Miscellaneous Expenses,5034,Ref 1937,26/06/2019,138736,154.00,Revenue,Mobility Care Services,70841
Chorley Borough Council,http://statistics.data.gov.uk/id/local-authority/30UE,Private Sector HSG Renewal,1073,Early Intervention,External Contractor,40198,Miscellaneous Expenses,5034,Ref 1933,26/06/2019,138736,66.00,Revenue,Mobility Care Services,70841
Chorley Borough Council,http://statistics.data.gov.uk/id/local-authority/30UE,Private Sector HSG Renewal,1073,Early Intervention,External Contractor,40198,Miscellaneous Expenses,5034,Ref 2076,26/06/2019,138736,66.00,Revenue,Mobility Care Services,70841
Chorley Borough Council,http://statistics.data.gov.uk/id/local-authority/30UE,Private Sector HSG Renewal,1073,Early Intervention,External Contractor,40198,Miscellaneous Expenses,5034,Ref 2077,26/06/2019,138736,256.00,Revenue,Mobility Care Services,70841
Chorley Borough Council,http://statistics.data.gov.uk/id/local-authority/30UE,Private Sector HSG Renewal,1073,Early Intervention,External Contractor,40198,Miscellaneous Expenses,5034,Ref 2087,26/06/2019,138736,128.00,Revenue,Mobility Care Services,70841
Chorley Borough Council,http://statistics.data.gov.uk/id/local-authority/30UE,Private Sector HSG Renewal,1073,Early Intervention,External Contractor,40198,Miscellaneous Expenses,5034,Ref 2088,26/06/2019,138736,66.00,Revenue,Mobility Care Services,70841
Chorley Borough Council,http://statistics.data.gov.uk/id/local-authority/30UE,Private Sector HSG Renewal,1073,Early Intervention,External Contractor,40198,Miscellaneous Expenses,5034,Ref 2089,26/06/2019,138736,128.00,Revenue,Mobility Care Services,70841
Chorley Borough Council,http://statistics.data.gov.uk/id/local-authority/30UE,Private Sector HSG Renewal,1073,Early Intervention,External Contractor,40198,Miscellaneous Expenses,5034,Ref 2090,26/06/2019,138736,66.00,Revenue,Mobility Care Services,70841
Chorley Borough Council,http://statistics.data.gov.uk/id/local-authority/30UE,Private Sector HSG Renewal,1073,Early Intervention,External Contractor,40198,Miscellaneous Expenses,5034,Ref 2098,26/06/2019,138736,480.00,Revenue,Mobility Care Services,70841
Chorley Borough Council,http://statistics.data.gov.uk/id/local-authority/30UE,Private Sector HSG Renewal,1073,Early Intervention,External Contractor,40198,Miscellaneous Expenses,5034,Ref 1848,26/06/2019,138736,256.00,Revenue,Mobility Care Services,70841
Chorley Borough Council,http://statistics.data.gov.uk/id/local-authority/30UE,Private Sector HSG Renewal,1073,Early Intervention,External Contractor,40198,Miscellaneous Expenses,5034,Ref 1851,26/06/2019,138736,111.00,Revenue,Mobility Care Services,70841
Chorley Borough Council,http://statistics.data.gov.uk/id/local-authority/30UE,Private Sector HSG Renewal,1073,Early Intervention,External Contractor,40198,Miscellaneous Expenses,5034,Ref 1852,26/06/2019,138736,256.00,Revenue,Mobility Care Services,70841
Chorley Borough Council,http://statistics.data.gov.uk/id/local-authority/30UE,Private Sector HSG Renewal,1073,Early Intervention,External Contractor,40198,Miscellaneous Expenses,5034,Ref 1773,26/06/2019,138736,66.00,Revenue,Mobility Care Services,70841
Chorley Borough Council,http://statistics.data.gov.uk/id/local-authority/30UE,Private Sector HSG Renewal,1073,Early Intervention,External Contractor,40198,Miscellaneous Expenses,5034,Ref 1774,26/06/2019,138736,128.00,Revenue,Mobility Care Services,70841
Chorley Borough Council,http://statistics.data.gov.uk/id/local-authority/30UE,Private Sector HSG Renewal,1073,Early Intervention,External Contractor,40198,Miscellaneous Expenses,5034,Ref 2086,26/06/2019,138736,990.00,Revenue,Mobility Care Services,70841
Chorley Borough Council,http://statistics.data.gov.uk/id/local-authority/30UE,Service Management & Support,1009,Customer & Digital,Training Course Fees,17010,Indirect Employee Expenses,5002,Mini digger and shoring refresher training for 3 operatives Training will take place at Chorley Cemetery,06/06/2019,138353,780.00,Revenue,Morton Training Limited,76873
Chorley Borough Council,http://statistics.data.gov.uk/id/local-authority/30UE,Service Management & Support,1009,Customer & Digital,Training Course Fees,17010,Indirect Employee Expenses,5002,"Lantra Accredited PA1 + PA6 Refresher training. 2 Days training 8 delegates at Bengal Street, 13th/14th May",26/06/2019,138695,900.00,Revenue,Morton Training Limited,76873
Chorley Borough Council,http://statistics.data.gov.uk/id/local-authority/30UE,Unapportionable Central OHeads,1009,Policy & Governance,Professional Fees,40063,Services,5027,"Fees of J Dyer for attendance, NAME REDACTEDvChorley BC on 30/5/19 - appeal not to issue a hackney carriage license.",06/06/2019,138424,"1,500.00",Revenue,Mr Jacob Dyer,21575
Chorley Borough Council,http://statistics.data.gov.uk/id/local-authority/30UE,Unapportionable Central OHeads,1009,Policy & Governance,Legal Fees,40171,Miscellaneous Expenses,5034,NAME REDACTED v Chorley Borough Council Crown Court Appeal (Licensing) Preparation of Skeleton Argument,06/06/2019,138424,150.00,Revenue,Mr Jacob Dyer,21575
Chorley Borough Council,http://statistics.data.gov.uk/id/local-authority/30UE,Economic Development,1096,Business Development & Growth,Promotional Expenses,40159,Miscellaneous Expenses,5034,"As per Estimate ref 30524 , please supply 14,000 tri fold leaflets.... @ 475.00",04/06/2019,138286,475.00,Revenue,N B Colour Print Ltd,17917
Chorley Borough Council,http://statistics.data.gov.uk/id/local-authority/30UE,Unapportionable Central OHeads,1009,Policy & Governance,Publicity - Advertising,40157,Miscellaneous Expenses,5034,"8000 x copies of the A4 Astley Hall leaflet. 500 to town hall, 2500 to Astley Hall, 5000 to Take One Media for distribution",04/06/2019,138287,650.00,Revenue,N B Colour Print Ltd,17917
Chorley Borough Council,http://statistics.data.gov.uk/id/local-authority/30UE,Tourism,1039,Policy & Governance,Publicity - Advertising,40157,Miscellaneous Expenses,5034,6000 - A5 CFS Flyers Estimate - 30914,26/06/2019,138848,322.00,Revenue,N B Colour Print Ltd,17917
Chorley Borough Council,http://statistics.data.gov.uk/id/local-authority/30UE,Control Accounts,Control,Policy & Governance,General Balances,100,Balance Sheet,Balance,salary deduction,19/06/2019,138793,455.00,Revenue,Natwest Bank ACCOUNT REDACTED,16968
Chorley Borough Council,http://statistics.data.gov.uk/id/local-authority/30UE,Central Support Services,1009,Policy & Governance,Miscellaneous Expenses,40200,Miscellaneous Expenses,5034,3 x half page inserts in Chorley Citizen starting on Wednesday 9th May. artwork attached to email,06/06/2019,138438,450.00,Revenue,Newsquest (Lancashire) Limited,18117
Chorley Borough Council,http://statistics.data.gov.uk/id/local-authority/30UE,Capital,Capital,Customer & Digital,Other Capital Grants/Loans,3000,Capital Expenditure,Capital,claim 18,07/06/2019,138429,"48,455.53",Capital,Next Big Thing Developments,77044
Chorley Borough Council,http://statistics.data.gov.uk/id/local-authority/30UE,Capital,Capital,Customer & Digital,Other Capital Grants/Loans,3000,Capital Expenditure,Capital,GRANT19,26/06/2019,138825,"70,451.15",Capital,Next Big Thing Developments,77044
Chorley Borough Council,http://statistics.data.gov.uk/id/local-authority/30UE,Unapportionable Central OHeads,1009,Chief Executive,Stationery,40050,"Printing, Stationery & General",5026,Newspaper for Union St 1 April 2018 - 31 March 2019,12/06/2019,138320,370.34,Revenue,Nooze `n` Booze,19382
Chorley Borough Council,http://statistics.data.gov.uk/id/local-authority/30UE,Unapportionable Central OHeads,1009,Policy & Governance,Laundry,40042,"Clothing, Uniforms and Laundry",5025,"Invoice number 568 Tea towels and tablecloths laundered and pressed, collected and delivered up to 11th May 2019",04/06/2019,138348,538.00,Revenue,North West Ironing & Laundry Centre,20450
Chorley Borough Council,http://statistics.data.gov.uk/id/local-authority/30UE,Elections,1012,Customer & Digital,Hire Of Vehicles and Plant,30028,Contrct Hire & Operating Lease,5018,Ford transit custom vehicle hire for period of Tuesday morning on the 23rd April and return Friday 31st May.,28/06/2019,138966,334.49,Revenue,Northgate Vehicle Hire (NW) Ltd,17360
Chorley Borough Council,http://statistics.data.gov.uk/id/local-authority/30UE,Unapportionable Central OHeads,1009,Business Development & Growth,Electricity,20013,Energy Costs,5006,1/4/19 to 30/4/19,06/06/2019,138368,"3,832.17",Revenue,Npower Commercial Gas,16814
Chorley Borough Council,http://statistics.data.gov.uk/id/local-authority/30UE,Unapportionable Central OHeads,1009,Business Development & Growth,Electricity,20013,Energy Costs,5006,1/4/19 to 30/4/19,06/06/2019,138369,"2,341.18",Revenue,Npower Commercial Gas,16814
Chorley Borough Council,http://statistics.data.gov.uk/id/local-authority/30UE,Business Support,1095,Business Development & Growth,Electricity,20013,Energy Costs,5006,1/4/19 to 1/5/19,07/06/2019,138372,902.36,Revenue,Npower Commercial Gas,16814
Chorley Borough Council,http://statistics.data.gov.uk/id/local-authority/30UE,Unapportionable Central OHeads,1009,Business Development & Growth,Electricity,20013,Energy Costs,5006,1/4/19 to 30/4/19,07/06/2019,138373,"1,012.08",Revenue,Npower Commercial Gas,16814
Chorley Borough Council,http://statistics.data.gov.uk/id/local-authority/30UE,Democratic Represent and  Mgnt,1007,Business Development & Growth,Electricity,20013,Energy Costs,5006,1/4/19 to 1/5/19,06/06/2019,138412,"1,074.73",Revenue,Npower Commercial Gas,16814
Chorley Borough Council,http://statistics.data.gov.uk/id/local-authority/30UE,Democratic Represent and  Mgnt,1007,Business Development & Growth,Electricity,20013,Energy Costs,5006,1/4/19 to 1/5/19,06/06/2019,138419,311.58,Revenue,Npower Commercial Gas,16814
Chorley Borough Council,http://statistics.data.gov.uk/id/local-authority/30UE,Homelessness,1075,Business Development & Growth,Electricity,20013,Energy Costs,5006,1/4/19 to 1/5/19,06/06/2019,138420,508.30,Revenue,Npower Commercial Gas,16814
Chorley Borough Council,http://statistics.data.gov.uk/id/local-authority/30UE,Democratic Represent and  Mgnt,1007,Business Development & Growth,Electricity,20013,Energy Costs,5006,2/5/19 to 1/6/,26/06/2019,138738,"1,049.29",Revenue,Npower Commercial Gas,16814
Chorley Borough Council,http://statistics.data.gov.uk/id/local-authority/30UE,Homelessness,1075,Business Development & Growth,Electricity,20013,Energy Costs,5006,2/5/19 to 1/6/19,26/06/2019,138745,456.11,Revenue,Npower Commercial Gas,16814
Chorley Borough Council,http://statistics.data.gov.uk/id/local-authority/30UE,Business Support,1095,Business Development & Growth,Electricity,20013,Energy Costs,5006,may - jun19,26/06/2019,138748,835.39,Revenue,Npower Commercial Gas,16814
Chorley Borough Council,http://statistics.data.gov.uk/id/local-authority/30UE,Unapportionable Central OHeads,1009,Business Development & Growth,Gas,20014,Energy Costs,5006,may-jun19,26/06/2019,138819,"2,243.90",Revenue,Npower Commercial Gas,16814
Chorley Borough Council,http://statistics.data.gov.uk/id/local-authority/30UE,Unapportionable Central OHeads,1009,Business Development & Growth,Electricity,20013,Energy Costs,5006,may - jun19,26/06/2019,138823,"3,737.59",Revenue,Npower Commercial Gas,16814
Chorley Borough Council,http://statistics.data.gov.uk/id/local-authority/30UE,Unapportionable Central OHeads,1009,Business Development & Growth,Electricity,20013,Energy Costs,5006,may - jun19,26/06/2019,138826,915.96,Revenue,Npower Commercial Gas,16814
Chorley Borough Council,http://statistics.data.gov.uk/id/local-authority/30UE,Parking Services,1066,Business Development & Growth,Miscellaneous Expenses,40200,Miscellaneous Expenses,5034,Please supply 2 stewards for Tuesday only starting on Tuesday 14/05/19 - 28/05/19 (3 days),06/06/2019,138433,456.96,Revenue,NSL Limited,67253
Chorley Borough Council,http://statistics.data.gov.uk/id/local-authority/30UE,Parking Services,1066,Business Development & Growth,External Contractors,50008,Private Contractors,5042,"Off street car park enforcement, cash collection, cash counting facilities and third party bulk cash collections 01.04.19 - 31.03.20",07/06/2019,138451,"4,453.16",Revenue,NSL Limited,67253
Chorley Borough Council,http://statistics.data.gov.uk/id/local-authority/30UE,Democratic Represent and  Mgnt,1007,Policy & Governance,Conferences - Members,40121,Expenses,5030,Non CIH member - councillor NAME REDACTED - single day,14/06/2019,138610,608.00,Revenue,Ocean Media Group Ltd,16204
Chorley Borough Council,http://statistics.data.gov.uk/id/local-authority/30UE,Unapportionable Central OHeads,1009,Policy & Governance,Exhibitions & Special Events,40158,Miscellaneous Expenses,5034,Climbing Wall Hire,14/06/2019,138575,900.00,Revenue,Outdoor Logistics NW,78024
Chorley Borough Council,http://statistics.data.gov.uk/id/local-authority/30UE,Service Management & Support,1009,Customer & Digital,Tools & Equipment - Purchase,40003,"Equipment, Furniture & Materia",5023,1 X Petrol power washer - 6.5hp (engine power) 600litre/hour (flow rate) 175 bar (Manifold pressure) please,12/06/2019,138509,569.95,Revenue,P D M Components,19204
Chorley Borough Council,http://statistics.data.gov.uk/id/local-authority/30UE,Elections,1012,Policy & Governance,Stationery,40050,"Printing, Stationery & General",5026,85 TVD selector devices,04/06/2019,138279,601.50,Revenue,Pakflatt Group,21177
Chorley Borough Council,http://statistics.data.gov.uk/id/local-authority/30UE,Unapportionable Central OHeads,1009,Policy & Governance,Exhibitions & Special Events,40158,Miscellaneous Expenses,5034,Picnic in the Park photography,14/06/2019,138564,250.00,Revenue,Paul Heyes Photographer,20909
Chorley Borough Council,http://statistics.data.gov.uk/id/local-authority/30UE,Business Support,1095,Business Development & Growth,Miscellaneous Expenses,40200,Miscellaneous Expenses,5034,Supply and install fire extinguishers and signs at Chorley Digital Office Park as per quotation,06/06/2019,138218,"1,846.12",Revenue,Pennine Fire & Safety Limited,69643
Chorley Borough Council,http://statistics.data.gov.uk/id/local-authority/30UE,Capital,Capital,Business Development & Growth,Consultants Fees,3025,Capital Expenditure,Capital,To provide Project Management for Market Walk and associated schemes (previous order no: PRD052595),07/06/2019,138434,"11,171.78",Capital,Perfect Circle JV Ltd,76438
Chorley Borough Council,http://statistics.data.gov.uk/id/local-authority/30UE,Central Support Services,1009,Early Intervention,Pest Control,20039,Cleaning and Domestic Supplies,5012,Pest Control services for 2019/20 at 390 per week for 48 weeks.,04/06/2019,138290,292.50,Revenue,Peter L Johnson,16727
Chorley Borough Council,http://statistics.data.gov.uk/id/local-authority/30UE,Central Support Services,1009,Early Intervention,Pest Control,20039,Cleaning and Domestic Supplies,5012,Pest Control services for 2019/20 at 390 per week for 48 weeks.,07/06/2019,138490,390.00,Revenue,Peter L Johnson,16727
Chorley Borough Council,http://statistics.data.gov.uk/id/local-authority/30UE,Central Support Services,1009,Early Intervention,Pest Control,20039,Cleaning and Domestic Supplies,5012,updated purchase order for Pest control services for 2019/20,21/06/2019,138631,390.00,Revenue,Peter L Johnson,16727
Chorley Borough Council,http://statistics.data.gov.uk/id/local-authority/30UE,Service Management & Support,1009,Customer & Digital,Vehicles and Plant Maintenance,30045,Direct Transport Costs,5016,1 x 210L Adblue,28/06/2019,138479,94.50,Revenue,Pilkington Oils,18075
Chorley Borough Council,http://statistics.data.gov.uk/id/local-authority/30UE,Service Management & Support,1009,Customer & Digital,Vehicles and Plant Maintenance,30045,Direct Transport Costs,5016,1 box of 36 EP2 lithium grease,28/06/2019,138479,100.08,Revenue,Pilkington Oils,18075
Chorley Borough Council,http://statistics.data.gov.uk/id/local-authority/30UE,Service Management & Support,1009,Customer & Digital,Vehicles and Plant Maintenance,30045,Direct Transport Costs,5016,2 x traffic film remover @ 30each,28/06/2019,138479,60.00,Revenue,Pilkington Oils,18075
Chorley Borough Council,http://statistics.data.gov.uk/id/local-authority/30UE,Precepts and Collection Fund,Precepts,Policy & Governance,LPA Precept,2010,Precepts & Collection Fund,Precept,PCC council tax precept,10/06/2019,138064,"754,173.00",Revenue,Police & Crime Commissioner,17438
Chorley Borough Council,http://statistics.data.gov.uk/id/local-authority/30UE,Central Support Services,1009,Customer & Digital,Safety Signs And Posters,40017,"Equipment, Furniture & Materia",5023,1000 x Clean It Up Dog Signs/Stickers as per quote REF12376/2,28/06/2019,138548,"1,098.86",Revenue,Poppy Signs Ltd,21898
Chorley Borough Council,http://statistics.data.gov.uk/id/local-authority/30UE,Tourism,1039,Policy & Governance,Publicity - Advertising,40157,Miscellaneous Expenses,5034,"1 Full colour with protective laminate. On `easy peel` vinyl to allow removal, 1 Remove vinyl from sign after the event",26/06/2019,138555,945.60,Revenue,Poppy Signs Ltd,21898
Chorley Borough Council,http://statistics.data.gov.uk/id/local-authority/30UE,Capital,Capital,Early Intervention,Other Capital Related Fees,3024,Capital Expenditure,Capital,"1 Unit(s) 2 windows; 1 side window, 1 main front window Full colour digital print as per your design.",28/06/2019,138677,366.23,Capital,Poppy Signs Ltd,21898
Chorley Borough Council,http://statistics.data.gov.uk/id/local-authority/30UE,Unapportionable Central OHeads,1009,Policy & Governance,Photocopier Consumables,40049,"Printing, Stationery & General",5026,Evolution Everyday A3 80gsm box 2500,12/06/2019,137412,27.75,Revenue,Premier Paper Group,54451
Chorley Borough Council,http://statistics.data.gov.uk/id/local-authority/30UE,Unapportionable Central OHeads,1009,Policy & Governance,Photocopier Consumables,40049,"Printing, Stationery & General",5026,"Evolution Everyday A4 80gsm, Box 2500",12/06/2019,137412,550.00,Revenue,Premier Paper Group,54451
Chorley Borough Council,http://statistics.data.gov.uk/id/local-authority/30UE,Elections,1012,Policy & Governance,Printing,40043,"Printing, Stationery & General",5026,Borough Postal vote packs,04/06/2019,138229,"16,798.86",Revenue,Print Image Network,21171
Chorley Borough Council,http://statistics.data.gov.uk/id/local-authority/30UE,Elections,1012,Policy & Governance,Printing,40043,"Printing, Stationery & General",5026,Borough Ballot Books x 15 Wards including tendered books,04/06/2019,138327,"8,192.87",Revenue,Print Image Network,21171
Chorley Borough Council,http://statistics.data.gov.uk/id/local-authority/30UE,Elections,1012,Policy & Governance,Printing,40043,"Printing, Stationery & General",5026,Parish Ballot books plus tendered books,14/06/2019,138560,752.35,Revenue,Print Image Network,21171
Chorley Borough Council,http://statistics.data.gov.uk/id/local-authority/30UE,Elections,1012,Policy & Governance,Printing,40043,"Printing, Stationery & General",5026,poll cards for Eccleston and Mawdesley by Election,28/06/2019,138691,"1,529.00",Revenue,Print Image Network,21171
Chorley Borough Council,http://statistics.data.gov.uk/id/local-authority/30UE,Other Short Term Creditors,,Policy & Governance,General Balances,100,Balance Sheet,Balance,,19/06/2019,138802,"2,071.50",Revenue,PRUDENTIAL,18178
Chorley Borough Council,http://statistics.data.gov.uk/id/local-authority/30UE,Unapportionable Central OHeads,1009,Policy & Governance,Exhibitions & Special Events,40158,Miscellaneous Expenses,5034,Hire of Stickman for Picnic in the Park Event 2 June 2019,04/06/2019,137957,"2,195.00",Revenue,Rainbow Productions Ltd,21858
Chorley Borough Council,http://statistics.data.gov.uk/id/local-authority/30UE,Business Support,1095,Business Development & Growth,Miscellaneous Expenses,40200,Miscellaneous Expenses,5034,"Carry out Trapping Programme, discussed with NAME REDACTED To carry out bi-annual 4 weeks trapping programme",21/06/2019,137743,381.00,Revenue,Rentokil,76639
Chorley Borough Council,http://statistics.data.gov.uk/id/local-authority/30UE,Private Sector HSG Renewal,1073,Early Intervention,Miscellaneous Expenses,40200,Miscellaneous Expenses,5034,ADDRESS REDACTED,04/06/2019,138147,"1,114.00",Revenue,Rhea Projects Ltd,77753
Chorley Borough Council,http://statistics.data.gov.uk/id/local-authority/30UE,Private Sector HSG Renewal,1073,Early Intervention,Miscellaneous Expenses,40200,Miscellaneous Expenses,5034,Misc Expenses,21/06/2019,138603,"1,452.00",Revenue,Rhea Projects Ltd,77753
Chorley Borough Council,http://statistics.data.gov.uk/id/local-authority/30UE,Business Support,1095,Business Development & Growth,Miscellaneous Expenses,40200,Miscellaneous Expenses,5034,Outstanding professional fees - services Digital Office Park - original PO expired,06/06/2019,138292,"2,500.00",Revenue,Rider Levett Bucknall,67527
Chorley Borough Council,http://statistics.data.gov.uk/id/local-authority/30UE,Business Support,1095,Business Development & Growth,Miscellaneous Expenses,40200,Miscellaneous Expenses,5034,Outstanding professional fees - services Digital Office Park - original PO expired,06/06/2019,138293,"2,500.00",Revenue,Rider Levett Bucknall,67527
Chorley Borough Council,http://statistics.data.gov.uk/id/local-authority/30UE,Service Management & Support,1009,Customer & Digital,Supplies-Grounds Maintenance,40025,"Equipment, Furniture & Materia",5023, 40 x Trustee Amenity 5L @ 27.00each,26/06/2019,138689,"1,080.00",Revenue,Rigby Taylor Ltd,16299
Chorley Borough Council,http://statistics.data.gov.uk/id/local-authority/30UE,Elections,1012,Policy & Governance,Postages,40082,Communication and Computing,5028,postal vote returns for European elections - RXAE-GAEJ-REXJ,14/06/2019,138154,"5,284.95",Revenue,Royal Mail Group Plc,17522
Chorley Borough Council,http://statistics.data.gov.uk/id/local-authority/30UE,Elections,1012,Policy & Governance,Postages,40082,Communication and Computing,5028,postal vote returns for European elections - RXAE-GAEJ-REXJ,14/06/2019,138558,"2,030.66",Revenue,Royal Mail Group Plc,17522
Chorley Borough Council,http://statistics.data.gov.uk/id/local-authority/30UE,Elections,1012,Policy & Governance,Postages,40082,Communication and Computing,5028,"postal vote returns, borough elections 2019",27/06/2019,138729,"1,488.80",Revenue,Royal Mail Group Plc,17522
Chorley Borough Council,http://statistics.data.gov.uk/id/local-authority/30UE,Capital,Capital,Policy & Governance,Equipment,3014,Capital Expenditure,Capital,Staging for Events,04/06/2019,138317,"3,000.00",Capital,RPM Events,70613
Chorley Borough Council,http://statistics.data.gov.uk/id/local-authority/30UE,Unapportionable Central OHeads,1009,Policy & Governance,Mayoral Hospitality,40123,Expenses,5030,Venue dressing for the Mayor`s Civic Dinner at Chorley Town Hall on Friday  21st June 2019. to be removed after event ,27/06/2019,138797,863.50,Revenue,S J Enterprises (Chorley) Limited,70096
Chorley Borough Council,http://statistics.data.gov.uk/id/local-authority/30UE,Democratic Represent and  Mgnt,1007,Policy & Governance,Exhibitions,40176,Miscellaneous Expenses,5034,BWPA exhibition 2019 deposit.,04/06/2019,138301,450.00,Revenue,Sanders Exhibition Service Ltd,76737
Chorley Borough Council,http://statistics.data.gov.uk/id/local-authority/30UE,Homelessness,1075,Early Intervention,External Contractor,40198,Miscellaneous Expenses,5034,Concierge Services for Cotswold Supported Housing For Period  01/04/2019 - 31/03/2019,12/06/2019,138503,"6,349.04",Revenue,Sector Security Services,19269
Chorley Borough Council,http://statistics.data.gov.uk/id/local-authority/30UE,Business Support,1095,Early Intervention,External Contractor,40198,Miscellaneous Expenses,5034,Primrose Gardens - Concierge Services for period 1/04/2019 - 31/03/2019,19/06/2019,138543,"4,625.11",Revenue,Sector Security Services,19269
Chorley Borough Council,http://statistics.data.gov.uk/id/local-authority/30UE,Business Support,1095,Business Development & Growth,Security Service,40062,Services,5027,6 month contract billed hourly form April 19 to Sept 19 ,26/06/2019,137669,"6,977.80",Revenue,Securitas Security Services (UK) Ltd,70693
Chorley Borough Council,http://statistics.data.gov.uk/id/local-authority/30UE,Business Support,1095,Business Development & Growth,Security Service,40062,Services,5027,6 month contract billed hourly form April 19 to Sept 19,06/06/2019,138450,"7,012.55",Revenue,Securitas Security Services (UK) Ltd,70693
Chorley Borough Council,http://statistics.data.gov.uk/id/local-authority/30UE,Service Management & Support,1009,Customer & Digital,Supplies-Grounds Maintenance,40025,"Equipment, Furniture & Materia",5023,150 No Waiting Cones - Triangular,04/06/2019,138342,"1,440.00",Revenue,Smart Image Workwear,21064
Chorley Borough Council,http://statistics.data.gov.uk/id/local-authority/30UE,Central Support Services,1009,Customer & Digital,IT Software - Annual Licences,40101,Communication and Computing,5028,SfB Cloud PBX ShrdSvr All Language SubsVL MVL PerUsr x15,14/06/2019,138622,717.75,Revenue,Softcat Ltd,69996
Chorley Borough Council,http://statistics.data.gov.uk/id/local-authority/30UE,Central Support Services,1009,Customer & Digital,IT Software - Annual Licences,40101,Communication and Computing,5028,SfB PSTN Conferencing ShrdSvr All Language SubsVL MVL PerUsr x 15,14/06/2019,138623,422.40,Revenue,Softcat Ltd,69996
Chorley Borough Council,http://statistics.data.gov.uk/id/local-authority/30UE,Unapportionable Central OHeads,1009,Policy & Governance,Exhibitions & Special Events,40158,Miscellaneous Expenses,5034,Boom Bike Hire,06/06/2019,138447,500.00,Revenue,Sound Intervention Ltd,65504
Chorley Borough Council,http://statistics.data.gov.uk/id/local-authority/30UE,Planning Policy,1092,Business Development & Growth,Survey Expenses,40069,Services,5027,Surver Expenses,27/06/2019,138977,"2,333.33",Revenue,South Ribble Borough Council,17889
Chorley Borough Council,http://statistics.data.gov.uk/id/local-authority/30UE,Democratic Represent and  Mgnt,1007,Early Intervention,Consultants` Fees,40077,Services,5027,Waiver approved - Leisure Contract,14/06/2019,138294,"2,100.00",Revenue,Sport Leisure and Culture Consultancy,77651
Chorley Borough Council,http://statistics.data.gov.uk/id/local-authority/30UE,Unapportionable Central OHeads,1009,Policy & Governance,Exhibitions & Special Events,40158,Miscellaneous Expenses,5034,"2 Bus Park and Ride, Bus Station via Woodlands to Hallgate, for Picnic in the Park 2 June",14/06/2019,138567,470.49,Revenue,Stagecoach Services Limited,18598
Chorley Borough Council,http://statistics.data.gov.uk/id/local-authority/30UE,Central Support Services,1009,Customer & Digital,Computer - Support Services,40111,Communication and Computing,5028,"Hardware Support Renewal 22408 from 01/04/19 to 31/03/20, 01/04/19 to 30/09/19 (cover for 6 months), 01/04/19 to 30/06/19 ",07/06/2019,138193,"1,680.00",Revenue,Starcom Technologies Limited,20541
Chorley Borough Council,http://statistics.data.gov.uk/id/local-authority/30UE,Central Support Services,1009,Customer & Digital,Computer - Support Services,40111,Communication and Computing,5028,"Hardware Support Renewal 22408 01/04/19 to 31/03/20, 01/04/19 to 30/09/19 (Cover 6 mths), 01/04/19 to 30/06/19 (Cover 3 mths)",07/06/2019,138219,"1,209.60",Revenue,Starcom Technologies Limited,20541
Chorley Borough Council,http://statistics.data.gov.uk/id/local-authority/30UE,Central Support Services,1009,Customer & Digital,Computer - Support Services,40111,Communication and Computing,5028,"Chorley - Hardware Support Renewal 22408 01/04/19-31/03/20, 01/04/19-30/09/19(6 mths), 01/04/19-30/06/19(3 mths)",07/06/2019,138220,"1,640.00",Revenue,Starcom Technologies Limited,20541
Chorley Borough Council,http://statistics.data.gov.uk/id/local-authority/30UE,Central Support Services,1009,Customer & Digital,Computer - Support Services,40111,Communication and Computing,5028,"Chorley - Hardware Support Renewal 22408 1/04/19-31/03/20, 01/04/19-30/09/19 (6 mths), 01/04/19 to 30/06/19 (3 months)",14/06/2019,138221,"8,334.00",Revenue,Starcom Technologies Limited,20541
Chorley Borough Council,http://statistics.data.gov.uk/id/local-authority/30UE,Capital,Capital,Business Development & Growth,Other Capital Related Fees,3024,Capital Expenditure,Capital,"Public�Realm�&�Highway�Design�Engineering�services, 30�months�from5th�June2017.�Invoiced�monthly�basis.",06/06/2019,138435,"3,150.00",Capital,Street Civil Engineering Limited,76750
Chorley Borough Council,http://statistics.data.gov.uk/id/local-authority/30UE,Unapportionable Central OHeads,1009,Business Development & Growth,Planned Maintenance,20006,Repairs Maintenance & Alts,5005,Works for disabled parking bay on council land for resident as agreed with NAME REDACTED,06/06/2019,138222,300.00,Revenue,Stringfellow Bldg Cntrctrs Ltd,17893
Chorley Borough Council,http://statistics.data.gov.uk/id/local-authority/30UE,Democratic Represent and  Mgnt,1007,Business Development & Growth,Asset Maintenance Fund,20012,Repairs Maintenance & Alts,5005,Scaffolding hire for roofing works at Astley Hall x 20 weeks,06/06/2019,138226,"1,442.93",Revenue,Stringfellow Bldg Cntrctrs Ltd,17893
Chorley Borough Council,http://statistics.data.gov.uk/id/local-authority/30UE,Democratic Represent and  Mgnt,1007,Early Intervention,Fixtures & Fittings - Purchase,20027,Fixtures and Fittings,5010,To reduce existing kitchen worktop as much as possible and fit an extra unit in place of fridge. All for the sum of 300.00,04/06/2019,138227,300.00,Revenue,Stringfellow Bldg Cntrctrs Ltd,17893
Chorley Borough Council,http://statistics.data.gov.uk/id/local-authority/30UE,Democratic Represent and  Mgnt,1007,Early Intervention,Fixtures & Fittings - Purchase,20027,Fixtures and Fittings,5010,"To supply and fit a 500 and 600 base unit with worktop, four end panels etc. to match the existing. All for the sum of 800.00",04/06/2019,138227,800.00,Revenue,Stringfellow Bldg Cntrctrs Ltd,17893
Chorley Borough Council,http://statistics.data.gov.uk/id/local-authority/30UE,Democratic Represent and  Mgnt,1007,Early Intervention,Fixtures & Fittings - Purchase,20027,Fixtures and Fittings,5010,To line wall above to 900 from counter top with white hygienic cladding and stainless steel splash back above the oven ,04/06/2019,138227,200.00,Revenue,Stringfellow Bldg Cntrctrs Ltd,17893
Chorley Borough Council,http://statistics.data.gov.uk/id/local-authority/30UE,Democratic Represent and  Mgnt,1007,Early Intervention,Fixtures & Fittings - Purchase,20027,Fixtures and Fittings,5010,"To alter the electrics with two double sockets at high level, one single at low level and a cooker point. All for the sum of 400.00",04/06/2019,138227,400.00,Revenue,Stringfellow Bldg Cntrctrs Ltd,17893
Chorley Borough Council,http://statistics.data.gov.uk/id/local-authority/30UE,Capital,Capital,Early Intervention,Grants,3002,Capital Expenditure,Capital,ADDRESS REDACTED,04/06/2019,138249,"3,660.00",Capital,Stringfellow Bldg Cntrctrs Ltd,17893
Chorley Borough Council,http://statistics.data.gov.uk/id/local-authority/30UE,Capital,Capital,Early Intervention,Grants,3002,Capital Expenditure,Capital,ADDRESS REDACTED,04/06/2019,138250,"5,032.40",Capital,Stringfellow Bldg Cntrctrs Ltd,17893
Chorley Borough Council,http://statistics.data.gov.uk/id/local-authority/30UE,Unapportionable Central OHeads,1009,Business Development & Growth,General Repairs - Reactive,20004,Repairs Maintenance & Alts,5005,Reactive repairs April onwards,06/06/2019,138263,"1,925.00",Revenue,Stringfellow Bldg Cntrctrs Ltd,17893
Chorley Borough Council,http://statistics.data.gov.uk/id/local-authority/30UE,Democratic Represent and  Mgnt,1007,Business Development & Growth,Fixtures & Fittings - Repair/Mtnce,20028,Fixtures and Fittings,5010,Handrail at Astley,12/06/2019,138493,940.00,Revenue,Stringfellow Bldg Cntrctrs Ltd,17893
Chorley Borough Council,http://statistics.data.gov.uk/id/local-authority/30UE,Unapportionable Central OHeads,1009,Business Development & Growth,General Repairs - Reactive,20004,Repairs Maintenance & Alts,5005,Reactive repairs April onwards,27/06/2019,138853,"4,274.91",Revenue,Stringfellow Bldg Cntrctrs Ltd,17893
Chorley Borough Council,http://statistics.data.gov.uk/id/local-authority/30UE,Elections,1012,Policy & Governance,Rent/Hire Of Premises,20017,Premises Rents,5007,"May Elections-Flooring-St Mary�s. Ramps-St Bedes/St Oswalds/Balshaw Lane. Heavy sheets-Scout Hut, generator on standby",27/06/2019,138864,"1,765.00",Revenue,Stringfellow Bldg Cntrctrs Ltd,17893
Chorley Borough Council,http://statistics.data.gov.uk/id/local-authority/30UE,Elections,1012,Policy & Governance,Rent/Hire Of Premises,20017,Premises Rents,5007,"May Euro Elections- Flooring-St Mary�s.  Ramps-Abbey Vge/St Bedes/St Oswalds/Balshaw Ln, sheets-Scout Hut, generator",27/06/2019,138868,"1,545.00",Revenue,Stringfellow Bldg Cntrctrs Ltd,17893
Chorley Borough Council,http://statistics.data.gov.uk/id/local-authority/30UE,Unapportionable Central OHeads,1009,Business Development & Growth,Asset Maintenance Fund,20012,Repairs Maintenance & Alts,5005,Bengal St shower works,26/06/2019,138904,720.00,Revenue,Stringfellow Bldg Cntrctrs Ltd,17893
Chorley Borough Council,http://statistics.data.gov.uk/id/local-authority/30UE,Unapportionable Central OHeads,1009,Business Development & Growth,General Repairs - Reactive,20004,Repairs Maintenance & Alts,5005,Reactive repairs April onwards,26/06/2019,138915,"1,168.58",Revenue,Stringfellow Bldg Cntrctrs Ltd,17893
Chorley Borough Council,http://statistics.data.gov.uk/id/local-authority/30UE,Unapportionable Central OHeads,1009,Business Development & Growth,General Repairs - Reactive,20004,Repairs Maintenance & Alts,5005,Reactive repairs April onwards,26/06/2019,138918,"1,650.00",Revenue,Stringfellow Bldg Cntrctrs Ltd,17893
Chorley Borough Council,http://statistics.data.gov.uk/id/local-authority/30UE,Unapportionable Central OHeads,1009,Business Development & Growth,General Repairs - Reactive,20004,Repairs Maintenance & Alts,5005,Reactive repairs April onwards,26/06/2019,138920,324.70,Revenue,Stringfellow Bldg Cntrctrs Ltd,17893
Chorley Borough Council,http://statistics.data.gov.uk/id/local-authority/30UE,Business Support,1095,Customer & Digital,Refuse Collection,20037,Cleaning and Domestic Supplies,5012,"To provide a bakkie cage for cardboard in Service Yard 3 @ Market Walk Shopping Centre, From April 2019 - March 52 weeks ",04/06/2019,138103,12.00,Revenue,SUEZ R&R UK LTD,17615
Chorley Borough Council,http://statistics.data.gov.uk/id/local-authority/30UE,Business Support,1095,Customer & Digital,Refuse Collection,20037,Cleaning and Domestic Supplies,5012,Market Walk Yard 1 - 35 yard roll on/roll off cardboard skip @25 rental per month - no haulage or disposal costs,04/06/2019,138103,25.00,Revenue,SUEZ R&R UK LTD,17615
Chorley Borough Council,http://statistics.data.gov.uk/id/local-authority/30UE,Business Support,1095,Customer & Digital,Refuse Collection,20037,Cleaning and Domestic Supplies,5012,Market Walk Yard 2 - 35 yard roll on/roll off cardboard skip @25 rental per month - no haulage or disposal costs,04/06/2019,138103,25.00,Revenue,SUEZ R&R UK LTD,17615
Chorley Borough Council,http://statistics.data.gov.uk/id/local-authority/30UE,Business Support,1095,Customer & Digital,Refuse Collection,20037,Cleaning and Domestic Supplies,5012,Market Walk Yard 3 - 35 yard roll on/roll off cardboard skip @25 rental per month - no haulage or disposal costs,04/06/2019,138103,25.00,Revenue,SUEZ R&R UK LTD,17615
Chorley Borough Council,http://statistics.data.gov.uk/id/local-authority/30UE,Business Support,1095,Customer & Digital,Refuse Collection,20037,Cleaning and Domestic Supplies,5012,Market Walk Yard 3 - 35 yard roll on/roll off plastic skip @25 rental per month - no haulage or disposal costs,04/06/2019,138103,25.00,Revenue,SUEZ R&R UK LTD,17615
Chorley Borough Council,http://statistics.data.gov.uk/id/local-authority/30UE,Democratic Represent and  Mgnt,1007,Customer & Digital,Refuse Collection,20037,Cleaning and Domestic Supplies,5012,Provision of trade waste collections for Tatton CC  (1 APRIL -30 June 2019) 1x 660 litre per week.,04/06/2019,138103,20.81,Revenue,SUEZ R&R UK LTD,17615
Chorley Borough Council,http://statistics.data.gov.uk/id/local-authority/30UE,Central Support Services,1009,Customer & Digital,Miscellaneous Expenses,40200,Miscellaneous Expenses,5034,1 x 35 Yard Skip Hire for Heath Charnock Clean Up Day Saturday 13th April 2019,04/06/2019,138103,202.67,Revenue,SUEZ R&R UK LTD,17615
Chorley Borough Council,http://statistics.data.gov.uk/id/local-authority/30UE,Service Management & Support,1009,Customer & Digital,Refuse Collection,20037,Cleaning and Domestic Supplies,5012,Exchange 20 yard street sweeping skip for transportation to Farington Waste Disposal site Short term PO until end of June 2019,14/06/2019,138624,972.45,Revenue,SUEZ R&R UK LTD,17615
Chorley Borough Council,http://statistics.data.gov.uk/id/local-authority/30UE,Service Management & Support,1009,Customer & Digital,Refuse Collection,20037,Cleaning and Domestic Supplies,5012,Exchange 35 yard street clean & fly tip skip for transportation to Whinny Hill Waste site Short term PO until end of June 2019,14/06/2019,138624,"1,361.50",Revenue,SUEZ R&R UK LTD,17615
Chorley Borough Council,http://statistics.data.gov.uk/id/local-authority/30UE,Service Management & Support,1009,Customer & Digital,Refuse Collection,20037,Cleaning and Domestic Supplies,5012,Exchange 35 yard Green Waste skip for delivery to your depot for processing Short term PO until end of June 2019,14/06/2019,138624,350.00,Revenue,SUEZ R&R UK LTD,17615
Chorley Borough Council,http://statistics.data.gov.uk/id/local-authority/30UE,Service Management & Support,1009,Customer & Digital,Refuse Collection,20037,Cleaning and Domestic Supplies,5012,Disposal Charge for Green Waste  contained in 35 yard skip @37.50 per unit Short term PO until end of June 2019,14/06/2019,138624,37.50,Revenue,SUEZ R&R UK LTD,17615
Chorley Borough Council,http://statistics.data.gov.uk/id/local-authority/30UE,Business Support,1095,Business Development & Growth,Miscellaneous Expenses,40200,Miscellaneous Expenses,5034,"Speaker - Maggie Philbin OBE for Choose Chorley Business Evening Event, Thursday 11 July 2019",14/06/2019,138574,"5,000.00",Revenue,T.H.Entertainment Ltd Company,78084
Chorley Borough Council,http://statistics.data.gov.uk/id/local-authority/30UE,Economic Development,1096,Business Development & Growth,Promotional Expenses,40159,Miscellaneous Expenses,5034,"To distribute the market leaflet among TICs, hotels, service stations etc",19/06/2019,137997,810.00,Revenue,Take One Media,21807
Chorley Borough Council,http://statistics.data.gov.uk/id/local-authority/30UE,Unapportionable Central OHeads,1009,Policy & Governance,Publicity - Advertising,40157,Miscellaneous Expenses,5034,Marketing leaflet campaign for Astley Hall. 7000 leaflets distributed around North west as email to NAME REDACTED,19/06/2019,138039,765.00,Revenue,Take One Media,21807
Chorley Borough Council,http://statistics.data.gov.uk/id/local-authority/30UE,Central Support Services,1009,Customer & Digital,ICT Software Implementation,40114,Communication and Computing,5028,Professional services for Azure/DR Architecture for Teams,19/06/2019,137593,937.50,Revenue,TechAlign Ltd,77896
Chorley Borough Council,http://statistics.data.gov.uk/id/local-authority/30UE,Central Support Services,1009,Customer & Digital,Computer Equipment-Purchase,40098,Communication and Computing,5028,CCTV maintenance,12/06/2019,138316,791.25,Revenue,Technology Solutions,72376
Chorley Borough Council,http://statistics.data.gov.uk/id/local-authority/30UE,Central Support Services,1009,Customer & Digital,Consultants` Fees,40077,Services,5027,"1 year service support (as in the service description) inclusive of 48 RMACs & 2,4000 retainer. 1st april 2019-31st march 2020",12/06/2019,138470,"4,800.00",Revenue,The Networking People (NorthWest) Ltd T/a TNP Ltd,73446
Chorley Borough Council,http://statistics.data.gov.uk/id/local-authority/30UE,Capital,Capital,Business Development & Growth,Main Contractor,3007,Capital Expenditure,Capital,"Refurbishment of the play area at Delph Way, Whittle-le-Woods",10/06/2019,138537,"16,900.00",Capital,Thompson Groundworks Limited,78088
Chorley Borough Council,http://statistics.data.gov.uk/id/local-authority/30UE,Capital,Capital,Business Development & Growth,Main Contractor,3007,Capital Expenditure,Capital,MATERIALS,10/06/2019,138537,"6,500.00",Capital,Thompson Groundworks Limited,78088
Chorley Borough Council,http://statistics.data.gov.uk/id/local-authority/30UE,Business Support,1095,Business Development & Growth,Miscellaneous Expenses,40200,Miscellaneous Expenses,5034,Counter terror defence barriers / blocks as per quote QUO-08218-H5F8T4,26/06/2019,138544,"14,397.84",Revenue,Townscape products ltd,78064
Chorley Borough Council,http://statistics.data.gov.uk/id/local-authority/30UE,Capital,Capital,Policy & Governance,Purchase Money,3027,Capital Expenditure,Capital,Payment re: ADDRESS REDACTED,10/06/2019,137054,"25,000.00",Capital,Trustees of WhittleLeWoods & ClaytonLeWoods PClub,77972
Chorley Borough Council,http://statistics.data.gov.uk/id/local-authority/30UE,Capital,Capital,Policy & Governance,Other Capital Related Fees,3024,Capital Expenditure,Capital,ADDRESS REDACTED,10/06/2019,137438,"5,000.00",Capital,Trustees of WhittleLeWoods & ClaytonLeWoods PClub,77972
Chorley Borough Council,http://statistics.data.gov.uk/id/local-authority/30UE,Capital,Capital,Policy & Governance,Purchase Money,3027,Capital Expenditure,Capital,purchase of ADDRESS REDACTED,10/06/2019,138092,"530,000.00",Capital,Trustees of WhittleLeWoods & ClaytonLeWoods PClub,77972
Chorley Borough Council,http://statistics.data.gov.uk/id/local-authority/30UE,Unapportionable Central OHeads,1009,Policy & Governance,Television Licence,40170,Miscellaneous Expenses,5034,town hall,12/06/2019,138488,154.50,Revenue,TV Licensing,18105
Chorley Borough Council,http://statistics.data.gov.uk/id/local-authority/30UE,Unapportionable Central OHeads,1009,Policy & Governance,Television Licence,40170,Miscellaneous Expenses,5034,union st,12/06/2019,138488,154.50,Revenue,TV Licensing,18105
Chorley Borough Council,http://statistics.data.gov.uk/id/local-authority/30UE,Unapportionable Central OHeads,1009,Policy & Governance,Television Licence,40170,Miscellaneous Expenses,5034,bengal st,12/06/2019,138488,154.50,Revenue,TV Licensing,18105
Chorley Borough Council,http://statistics.data.gov.uk/id/local-authority/30UE,Unapportionable Central OHeads,1009,Business Development & Growth,Fire Alarms,20072,Fixtures and Fittings,5010,Union St Server Room -  6 month gas suppression system service Jan 2018.,14/06/2019,136033,319.50,Revenue,Tyco Fire & Integrated Solutions,19663
Chorley Borough Council,http://statistics.data.gov.uk/id/local-authority/30UE,Service Management & Support,1009,Customer & Digital,Petrol,30005,Direct Transport Costs,5016,31-Mar-19,10/06/2019,137061,288.71,Revenue,Uk Fuels Ltd,57996
Chorley Borough Council,http://statistics.data.gov.uk/id/local-authority/30UE,Service Management & Support,1009,Customer & Digital,Petrol,30005,Direct Transport Costs,5016,Petrol,10/06/2019,137668,578.19,Revenue,Uk Fuels Ltd,57996
Chorley Borough Council,http://statistics.data.gov.uk/id/local-authority/30UE,Service Management & Support,1009,Customer & Digital,Petrol,30005,Direct Transport Costs,5016,May-19,10/06/2019,138195,784.77,Revenue,Uk Fuels Ltd,57996
Chorley Borough Council,http://statistics.data.gov.uk/id/local-authority/30UE,Unapportionable Central OHeads,1009,Policy & Governance,Exhibitions & Special Events,40158,Miscellaneous Expenses,5034,Trailer Stage and PA for Picnic in the Park Sunday 2 June,04/06/2019,138328,"1,675.00",Revenue,UK Media and Events Limited,71221
Chorley Borough Council,http://statistics.data.gov.uk/id/local-authority/30UE,Unapportionable Central OHeads,1009,Policy & Governance,Exhibitions & Special Events,40158,Miscellaneous Expenses,5034,Face Painting for Picnic in the Park,04/06/2019,138329,370.00,Revenue,UK Media and Events Limited,71221
Chorley Borough Council,http://statistics.data.gov.uk/id/local-authority/30UE,Unapportionable Central OHeads,1009,Policy & Governance,Exhibitions & Special Events,40158,Miscellaneous Expenses,5034,1 x Face Painter for Saturday 8 June 11 - 4pm 1 x Face Painter for Sunday 9 June 11 - 4pm Fazakerley Street Chorley,12/06/2019,138536,370.00,Revenue,UK Media and Events Limited,71221
Chorley Borough Council,http://statistics.data.gov.uk/id/local-authority/30UE,Unapportionable Central OHeads,1009,Customer & Digital,Service Fees,40056,Services,5027,Daily hybrid mail & annual billing,04/06/2019,138198,"1,630.02",Revenue,UKMAIL Ltd (Mail),57758
Chorley Borough Council,http://statistics.data.gov.uk/id/local-authority/30UE,Unapportionable Central OHeads,1009,Customer & Digital,Service Fees,40056,Services,5027,Daily hybrid mail & annual billing,19/06/2019,138609,771.80,Revenue,UKMAIL Ltd (Mail),57758
Chorley Borough Council,http://statistics.data.gov.uk/id/local-authority/30UE,Unapportionable Central OHeads,1009,Customer & Digital,Service Fees,40056,Services,5027,Daily hybrid mail & annual billing,28/06/2019,138810,737.54,Revenue,UKMAIL Ltd (Mail),57758
Chorley Borough Council,http://statistics.data.gov.uk/id/local-authority/30UE,Elections,1012,Policy & Governance,Rent/Hire Of Premises,20017,Premises Rents,5007,room hire for polling station on 2 May (borough elections) and 23 May (European elections,04/06/2019,138349,600.00,Revenue,Ulnes Walton Charitable Fund,18424
Chorley Borough Council,http://statistics.data.gov.uk/id/local-authority/30UE,Control Accounts,Control,Policy & Governance,General Balances,100,Balance Sheet,Balance,Monthly deductions from Payroll,28/06/2019,138992,"2,573.16",Revenue,Unify Credit Union Ltd,55509
Chorley Borough Council,http://statistics.data.gov.uk/id/local-authority/30UE,Capital,Capital,Early Intervention,Grants,3002,Capital Expenditure,Capital,Grants,26/06/2019,138863,"4,959.05",Capital,UPS Building and Maintenance Ltd,76235
Chorley Borough Council,http://statistics.data.gov.uk/id/local-authority/30UE,Capital,Capital,Early Intervention,Grants,3002,Capital Expenditure,Capital,Grants,26/06/2019,138872,"4,618.00",Capital,UPS Building and Maintenance Ltd,76235
Chorley Borough Council,http://statistics.data.gov.uk/id/local-authority/30UE,Central Support Services,1009,Business Development & Growth,Consultants` Fees,40077,Services,5027,Asset Valuations for Chorley Borough Council for 2018-19 accounts,12/06/2019,138459,"2,500.00",Revenue,Valuation Office Agency,17561
Chorley Borough Council,http://statistics.data.gov.uk/id/local-authority/30UE,Corporate Management,1008,Customer & Digital,"Hackney Badges, Plates Etc.",40023,"Equipment, Furniture & Materia",5023,"Flexiplate, Clear, Size 4F, Type A Adhesive x 4 packs",19/06/2019,138697,520.00,Revenue,VIP-SYSTEM LIMITED,69902
Chorley Borough Council,http://statistics.data.gov.uk/id/local-authority/30UE,Corporate Management,1008,Customer & Digital,"Hackney Badges, Plates Etc.",40023,"Equipment, Furniture & Materia",5023,Chorley PHV Size 4F unique V5 (Taxi Plate) x 2 packs,19/06/2019,138697,246.88,Revenue,VIP-SYSTEM LIMITED,69902
Chorley Borough Council,http://statistics.data.gov.uk/id/local-authority/30UE,Corporate Management,1008,Customer & Digital,"Hackney Badges, Plates Etc.",40023,"Equipment, Furniture & Materia",5023,Chorley PHV Size 2 x 1E Style 3_23_2 (Window Display) x 2 packs,19/06/2019,138697,48.18,Revenue,VIP-SYSTEM LIMITED,69902
Chorley Borough Council,http://statistics.data.gov.uk/id/local-authority/30UE,Corporate Management,1008,Customer & Digital,"Hackney Badges, Plates Etc.",40023,"Equipment, Furniture & Materia",5023,"Harpoon Security Button, Yellow x 4 packets",19/06/2019,138697,52.80,Revenue,VIP-SYSTEM LIMITED,69902
Chorley Borough Council,http://statistics.data.gov.uk/id/local-authority/30UE,Central Support Services,1009,Business Development & Growth,Consultants` Fees,40077,Services,5027,Independent Ecology Advice - Alker Lane,06/06/2019,138280,"1,750.00",Revenue,Wardell Armstrong LLP,77818
Chorley Borough Council,http://statistics.data.gov.uk/id/local-authority/30UE,Economic Development,1096,Business Development & Growth,Water - Metered Supplies,20022,Water Services,5009,19/3/19 to 2/6/19,14/06/2019,138561,512.85,Revenue,Water-plus,17926
Chorley Borough Council,http://statistics.data.gov.uk/id/local-authority/30UE,Unapportionable Central OHeads,1009,Business Development & Growth,Water - Metered Supplies,20022,Water Services,5009,26/2/19 to 14/6/19,26/06/2019,138831,"1,747.65",Revenue,Water-plus,17926
Chorley Borough Council,http://statistics.data.gov.uk/id/local-authority/30UE,Democratic Represent and  Mgnt,1007,Policy & Governance,Publications,40054,"Printing, Stationery & General",5026,Annual membership of the Rural Services Network for 2019-20.,04/06/2019,138330,663.00,Revenue,West Devon Borough Council,77974
Chorley Borough Council,http://statistics.data.gov.uk/id/local-authority/30UE,Capital,Capital,Customer & Digital,Main Contractor,3007,Capital Expenditure,Capital,Construction of Muslim prayer shelter at Chorley Cemetery as in tender docs/signed conditions of agreement 26 Sept 2018.,12/06/2019,136851,"71,749.00",Capital,William Pye Ltd,60564
Chorley Borough Council,http://statistics.data.gov.uk/id/local-authority/30UE,Capital,Capital,Business Development & Growth,Main Contractor,3007,Capital Expenditure,Capital,Design and Build Strawberry Fields Digital Hub - Chorley,26/06/2019,138141,"172,495.08",Capital,Willmott Dixon Construction Ltd,77420
Chorley Borough Council,http://statistics.data.gov.uk/id/local-authority/30UE,Capital,Capital,Business Development & Growth,Main Contractor,3007,Capital Expenditure,Capital,Design and Build Strawberry Fields Digital Hub - Chorley,06/06/2019,138200,"48,475.45",Capital,Willmott Dixon Construction Ltd,77420
Chorley Borough Council,http://statistics.data.gov.uk/id/local-authority/30UE,Service Management & Support,1009,Customer & Digital,Vehicles and Plant Maintenance,30045,Direct Transport Costs,5016,"PO15 VHF, Service and MOT, replace worn front brake discs and pads, replace wiper blades",06/06/2019,138385,349.75,Revenue,Wrekamendid Services Ltd,21188
Chorley Borough Council,http://statistics.data.gov.uk/id/local-authority/30UE,Service Management & Support,1009,Customer & Digital,Vehicles and Plant Maintenance,30045,Direct Transport Costs,5016,mot,06/06/2019,138385,30.00,Revenue,Wrekamendid Services Ltd,21188
Chorley Borough Council,http://statistics.data.gov.uk/id/local-authority/30UE,Service Management & Support,1009,Customer & Digital,Vehicles and Plant Maintenance,30045,Direct Transport Costs,5016,FL66 OWC-Replace ignition barrel and key,26/06/2019,138698,293.00,Revenue,Wrekamendid Services Ltd,21188
Chorley Borough Council,http://statistics.data.gov.uk/id/local-authority/30UE,Service Management & Support,1009,Customer & Digital,Vehicles and Plant Maintenance,30045,Direct Transport Costs,5016,Supply and fit new ignition barrel/ Steering lock with 2 keys,26/06/2019,138782,351.10,Revenue,Wrekamendid Services Ltd,21188
Chorley Borough Council,http://statistics.data.gov.uk/id/local-authority/30UE,Central Support Services,1009,Business Development & Growth,Consultants` Fees,40077,Services,5027,Planning application Works for shady Lane,06/06/2019,138009,"19,236.71",Revenue,WSP UK Ltd,77416
Chorley Borough Council,http://statistics.data.gov.uk/id/local-authority/30UE,Central Support Services,1009,Business Development & Growth,Consultants` Fees,40077,Services,5027,Planning application Works for shady Lane,26/06/2019,138492,"7,477.57",Revenue,WSP UK Ltd,77416
Chorley Borough Council,http://statistics.data.gov.uk/id/local-authority/30UE,Democratic Represent and  Mgnt,1007,Policy & Governance,Conservation Of Exhibits,40059,Services,5027,Astley Hall - 2 conservators - carry out remedial conservation to furniture and interior woodwork. Update furniture condition survey.,04/06/2019,138130,750.00,Revenue,Wynn Griffiths & Tarr Limited Business,77085
Chorley Borough Council,http://statistics.data.gov.uk/id/local-authority/30UE,Central Support Services,1009,Early Intervention,Miscellaneous Expenses,40200,Miscellaneous Expenses,5034,"Double Sided Mobile, deliver to Buttermere Community Centre please contact NAME REDACTED to ensure someone is at venue",14/06/2019,138505,717.60,Revenue,Yorkshire Purchasing Org,18098
